Workbook

Sheet Presentación

Sheet Instrucciones
A2: En la pestaña “E.Datos” (Entrada de datos) deben introducirse los datos del complejo. Además, en la comuna E donde se especifíca el número de animales al año hay que introducir el número de plazas que haya en la explotación.
A5: Si en su instalación conviven cerdos de diferentes categorías productivas, debe dividir el número de plazas entre el número de categorías que existan en su instalación.
A7: Por ejemplo:
A8: Granja de 3.000 plazas de cerdos de cebo, donde entran cerdos con 20 kg y salen con 109 kg. En la columna E de la pestaña de E.Datos, habría que introducir:
A9: •Cerdo 20-49 kg: 3.000/3=1.000
A10: •Cerdo 50-79 kg: 3.000/3=1.000
A11: •Cerdo 80-109 kg: 3.000/3=1.000
A13: El TOTAL DE ANIMALES EN GRANJA (celda E53) no puede superar el número de plazas autorizadas.
A15: Los porcentajes de Proteína Bruta Alimentaria de la columna G de la hoja “E.Datos”, están referidos a peso seco.
A17: En la pestaña "E.Datos2" mediante el desplegable situado en la derecha, debe introducir la provincia así como la persona responsable de realizar la declaración y el número de plazas según categoría para poder obtener el dato de CH4.
Q25: FASE 1: ALOJAMIENTO DE ANIMALES
Q26: Emparrillado total
Q27: Emparrillado parcial y fosa reducida
Q28: Emparrillado parcial y lavado a chorro
Q29: Emparrillado parcial y acidificación
Q30: Emparrillado parcial y refrigeración
Q31: Emparrillado parcial y paredes inclinadas
Q32: Emparrillado parcial y canales de agua y purín
Q33: Emparrillado parcial y cinta en V
Q35: FASE 2: EVACUACION DE PURINES DEL ALOJAMIENTO
Q36: Retirada poco frecuente: menos de 2 veces por semana
Q37: Retirada al menos 2 veces a la semana, con sistema de vacío
Q38: Retirada al menos 2 veces a la semana, con lavado a chorro
Q39: Canales de agua y purín
Q40: Colector de estiércol
Q42: FASE 3: ALMACENAMIENTO DE PURINES EN LA GRANJA
Q43: Sin almacenamiento
Q44: Almacén sin cubrir y sin costra
Q45: Costra natural / Materiales flotantes (paja)
Q46: Cubiertas rígidas/flexibles
Q47: Piezas flotantes
Q48: Bolsa de estiércol
Q49: Acidificación del purín
Q50: Lámina de plástico flexible
Q51: Fosa con paredes inclinadas
Q52: Refrigeración de la superficie del purín
Q53: Bolas flotantes
Q54: Sistemas de depuración de aire
Q56: FASE 4: APLICACIÓN DE PURINES AL CAMPO
Q57: Distribución en abanico
Q58: Inyección superficial
Q59: Inyección profunda (5-10 cm)
Q60: Inyección profunda (>15 com)
Q61: Tubos colgantes
H62: a) A la salida de la nave donde se alojan los animales: | M62: A almacenamiento | Q62: Zapatas colgantes
H63: b) A la salida del lugar o lugares de almacenamiento: | M63: Al campo o terreno agrícola | Q63: Dilución de purines y riego a baja presión
M64: A otros usos no agrarios | Q64: Acidificación del purín (pH 6) y riego
H66: EMISIONES METANO
H67: El usuario debe introducir los datos referidos en la pestaña E.Datos2 para que se realicen automáticamente los cálculos de emisiones de este contaminante.

Sheet E.Datos
B1: GANADO PORCINO
L2: Proteína bruta: | S2: Separación sólido-líquido:
L3: Marcar si la proteina bruta que se suministra habitualmente en la ración está o no dentro de los rangos. | S3: Marcar si se separa la fracción sólida de la fracción líquida en las deyecciones.
E4: IDENTIFICACION DE LA EXPLOTACION | L4: Grupo 1. Alojamiento de animales | S4: Destino de los purines:
L5: Si se aplica un mismo sistema de alojamiento para todos los animales, marcar la misma opción en todas las categorías. En caso contrario, diferenciar por categoría. | S5: Indicar el destino del purín o el estiércol procedente de la explotación: el que se recoge en la nave de alojamiento y el que se saca del almacén de purines.
B7: EXPLOTACIÓN | E7: NOMBRE | L7: Grupo 2. Evacuación de purines
E9: Nº REGISTRO REGA | L9: Si se aplica un mismo sistema de evacuación en toda la granja, marcar la misma opción para todas las categorías. En caso contrario, diferenciar por categoría. | S9: Si los purines se sacan fuera de la explotación, ya sean o no entregados a un gestor, marque el destino que cree más probable.
E11: RESPONSABLE | L11: Grupo 3. Almacenamiento de purines
S12: En el caso de haber varios destinos posibles, indique el mayoritario.
E13: MODULO/NAVE | L13: Si el almacenamiento se hace mediante un sistema (fosa/depósito) común, marcar la misma opción para todas las categorías. De haber varios sistemas, elegir por categoría animal el que corresponda o el más parecido.
S14: Sólo si procede, diferenciar por categoría animal.
E15: AÑO DE CONSTRUCCIÓN
E16: AÑO DE ÚLTIMA REFORMA | L16: Grupo 4. Aplicación de purines al campo
E18: LOCALIZACION | L18: Elegir el sistema empleado en la explotación, diferenciando si procede por categoría animal.
L19: Si los purines o el estiércol se sacan fuera de la explotación, marque el sistema que cree se aplica en el lugar de destino.
B22: A N I M A L E S | C22: CATEGORIAS PRODUCTIVAS | E22: Nº ANIMALES AL AÑO | G22: PROTEINA BRUTA ALIMENTARIA | H22: SÍ / NO | J22: ALOJAMIENTO DE ANIMALES | L22: EVACUACION DE PURINES | N22: SEPARACIÓN SÓLIDO-LÍQUIDO | P22: DESTINO DE LOS PURINES A LA SALIDA DEL ALOJAMIENTO | R22: ALMACENAMIENTO DE PURINES | T22: DESTINO DE LOS PURINES TRAS SER ALMACENADOS | W22: APLICACIÓN DE PURINES AL CAMPO
N23: SÍ / NO | T23: Sólidos | U23: Líquidos
C25: Lechones destetados | G25: 20,6 - 21,0 | H25: SÍ | J25: Emparrillado total | L25: Retirada poco frecuente: menos de 2 veces por semana | N25: NO | P25: A almacenamiento | R25: Almacén sin cubrir y sin costra | T25: A otros usos no agrarios | U25: A otros usos no agrarios | W25: Distribución en abanico
C27: Cerdo 20-49 kg | G27: 18,0 - 18,4 | H27: SÍ | J27: Emparrillado total | L27: Retirada poco frecuente: menos de 2 veces por semana | N27: NO | P27: A almacenamiento | R27: Almacén sin cubrir y sin costra | T27: A otros usos no agrarios | U27: A otros usos no agrarios | W27: Distribución en abanico
C29: Cerdo 50-79 kg | G29: 17,2 - 17,6 | H29: SÍ | J29: Emparrillado total | L29: Retirada poco frecuente: menos de 2 veces por semana | N29: NO | P29: A almacenamiento | R29: Almacén sin cubrir y sin costra | T29: A otros usos no agrarios | U29: A otros usos no agrarios | W29: Distribución en abanico
C31: Cerdo 80-109 kg | G31: 16,3 - 16,7 | H31: SÍ | J31: Emparrillado total | L31: Retirada poco frecuente: menos de 2 veces por semana | N31: NO | P31: A almacenamiento | R31: Almacén sin cubrir y sin costra | T31: A otros usos no agrarios | U31: A otros usos no agrarios | W31: Distribución en abanico
C33: Cerdo > 110 kg | G33: 15,0 - 15,4 | H33: SÍ | J33: Emparrillado total | L33: Retirada poco frecuente: menos de 2 veces por semana | N33: NO | P33: A almacenamiento | R33: Almacén sin cubrir y sin costra | T33: A otros usos no agrarios | U33: A otros usos no agrarios | W33: Distribución en abanico
C35: Verracos jóvenes | G35: 16,0 - 16,4 | H35: SÍ | J35: Emparrillado total | L35: Retirada poco frecuente: menos de 2 veces por semana | N35: NO | P35: A almacenamiento | R35: Almacén sin cubrir y sin costra | T35: A otros usos no agrarios | U35: A otros usos no agrarios | W35: Distribución en abanico
C37: Verracos adultos | G37: 16,0 - 16,4 | H37: SÍ | J37: Emparrillado total | L37: Retirada poco frecuente: menos de 2 veces por semana | N37: NO | P37: A almacenamiento | R37: Almacén sin cubrir y sin costra | T37: A otros usos no agrarios | U37: A otros usos no agrarios | W37: Distribución en abanico
C39: Reproductora no cubierta | G39: 15,2 - 15,6 | H39: SÍ | J39: Emparrillado total | L39: Retirada poco frecuente: menos de 2 veces por semana | N39: NO | P39: A almacenamiento | R39: Almacén sin cubrir y sin costra | T39: A otros usos no agrarios | U39: A otros usos no agrarios | W39: Distribución en abanico
C41: Reproductora en 1ª gestación | G41: 15,3 - 15,7 | H41: SÍ | J41: Emparrillado total | L41: Retirada poco frecuente: menos de 2 veces por semana | N41: NO | P41: A almacenamiento | R41: Almacén sin cubrir y sin costra | T41: A otros usos no agrarios | U41: A otros usos no agrarios | W41: Distribución en abanico
C43: Reproductora en gestación | G43: 15,2 - 15,6 | H43: SÍ | J43: Emparrillado total | L43: Retirada poco frecuente: menos de 2 veces por semana | N43: NO | P43: A almacenamiento | R43: Almacén sin cubrir y sin costra | T43: A otros usos no agrarios | U43: A otros usos no agrarios | W43: Distribución en abanico
C45: Reproductoras criando por 1ª vez | G45: 18,4 - 18,8 | H45: SÍ | J45: Emparrillado total | L45: Retirada poco frecuente: menos de 2 veces por semana | N45: NO | P45: A almacenamiento | R45: Almacén sin cubrir y sin costra | T45: A otros usos no agrarios | U45: A otros usos no agrarios | W45: Distribución en abanico
C47: Reproductoras criando | G47: 18,4 - 18,8 | H47: SÍ | J47: Emparrillado total | L47: Retirada poco frecuente: menos de 2 veces por semana | N47: NO | P47: A almacenamiento | R47: Almacén sin cubrir y sin costra | T47: A otros usos no agrarios | U47: A otros usos no agrarios | W47: Distribución en abanico
C49: Reproductoras en reposo por 1ª vez | G49: 18,4 - 18,8 | H49: SÍ | J49: Emparrillado total | L49: Retirada poco frecuente: menos de 2 veces por semana | N49: NO | P49: A almacenamiento | R49: Almacén sin cubrir y sin costra | T49: A otros usos no agrarios | U49: A otros usos no agrarios | W49: Distribución en abanico
C51: Reproductoras en reposo | G51: 18,4 - 18,8 | H51: SÍ | J51: Emparrillado total | L51: Retirada poco frecuente: menos de 2 veces por semana | N51: NO | P51: A almacenamiento | R51: Almacén sin cubrir y sin costra | T51: A otros usos no agrarios | U51: A otros usos no agrarios | W51: Distribución en abanico
C53: TOTAL ANIMALES EN GRANJA | E53: =IF(SUM(E25:E51)>0,SUM(E25:E51),"") -> 

Sheet E.Datos2
B2: IDENTIFICACIÓN PROVINCIA
B4: Provincia de ubicación | D4: Provincia
B6: Persona que realiza la declaración
B7: Nombre y apellidos
B8: Teléfono
B9: Correo electrónico
B11: Observaciones
A18: ANIMALES | B18: REGISTRO DE ANIMALES
B20: GANADO PORCINO | E20: Nº de Plazas
B21: Lechones de 6 a 20 kg.
B22: Cerdos de 20 a 50 kg.
B23: Cerdos de 50 a 100 kg.
B24: Cerdos de 20 a 100 kg.
B25: Madres con lechones de 0 a 6 kg.
B26: Madres con lechones hasta 20 kg.
B27: Cerdas de reposición
B28: Cerdas en ciclo cerrado
B29: Verracos
D30: Total | E30: =IF(SUM(E21:G29)=0,"",SUM(E21:G29)) -> 

Sheet Metano (hidden)
B2: CÁLCULO SOBRE LAS EMISIÓNES EN GANADO PORCINO
B4: EMISIÓN DE METANO POR GESTIÓN DE ESTIÉRCOL
B7: Provincia | C7: Factor de Conversión* | E7: Provincia | F7: =E.Datos2!D4 -> Provincia
B8: Valencia | C8: 0.20741 | E8: Factor de emisión | F8: =IF(F7="Provincia",0,VLOOKUP(F7,$B$8:$C$10,2,0)) -> 0
B9: Alicante | C9: 0.20773
B10: Castellón de la Plana | C10: 0.20345
B11: * El factor de conversión para el contaminante CH4. Cambia dependiendo de la provincia de ubicación de la instalación
B13: Tipo de ganado porcino | D13: Nº de plazas | E13: Excreción media de sólidos volátiles (Kg) | F13: Peso específico del metano (Kg/m3) | G13: Producción potencial de metano (m3/kg VS) | H13: Factor de conversión (CH4*) | I13: Factor de emisión (kg CH4/plaza) | J13: Emisión de metano (Kg CH4)
D14: A | E14: B | F14: C | G14: D | H14: E | I14: F=(BxCxDxE) | J14: G=AxF
B15: Lechones de 6 a 20 kg. | D15: =E.Datos2!E21 -> 0 | E15: 28.93 | F15: 0.67 | G15: 0.45 | H15: =IF($F$7="Provincia",0,VLOOKUP($F$7,$B$8:$C$10,2,0)) -> 0 | I15: =E15*F15*G15*H15 -> 0 | J15: =I15*D15 -> 0
B16: Cerdos de 20 a 50 kg. | D16: =E.Datos2!E22 -> 0 | E16: 76.78 | F16: 0.67 | G16: 0.45 | H16: 0 | I16: 0 | J16: 0
B17: Cerdos de 50 a 100 kg. | D17: =E.Datos2!E23 -> 0 | E17: 166.92 | F17: 0.67 | G17: 0.45 | H17: 0 | I17: 0 | J17: 0
B18: Cerdos de 20 a 100 kg. | D18: =E.Datos2!E24 -> 0 | E18: 133.54 | F18: 0.67 | G18: 0.45 | H18: 0 | I18: 0 | J18: 0
B19: Madres con lechones de 0 a 6 kg. | D19: =E.Datos2!E25 -> 0 | E19: 445.12 | F19: 0.67 | G19: 0.45 | H19: 0 | I19: 0 | J19: 0
B20: Madres con lechones hasta 20 kg. | D20: =E.Datos2!E26 -> 0 | E20: 445.12 | F20: 0.67 | G20: 0.45 | H20: 0 | I20: 0 | J20: 0
B21: Cerdas de reposición | D21: =E.Datos2!E27 -> 0 | E21: 178.05 | F21: 0.67 | G21: 0.45 | H21: 0 | I21: 0 | J21: 0
B22: Cerdas en ciclo cerrado | D22: =E.Datos2!E28 -> 0 | E22: 1185.14 | F22: 0.67 | G22: 0.45 | H22: 0 | I22: 0 | J22: 0
B23: Verracos | D23: =E.Datos2!E29 -> 0 | E23: 445.12 | F23: 0.67 | G23: 0.45 | H23: 0 | I23: 0 | J23: 0
I24: Total | J24: =SUM(J15:J23) -> 0
A26: EMISIÓN DE METANO POR FERMENTACIÓN ENTÉRICA
B29: Tipo de ganado porcino | D29: Nº de plazas | E29: Factor de emisión (Kg CH4 /plaza) | F29: Emisión de metano (Kg CH4)
D30: A | E30: B | F30: C=AxB
B31: Lechones de 6 a 20 kg. | D31: =E.Datos2!E21 -> 0 | E31: 1.2 | F31: =D31*E31 -> 0
B32: Cerdos de 20 a 50 kg. | D32: =E.Datos2!E22 -> 0 | E32: 1.2 | F32: 0
B33: Cerdos de 50 a 100 kg. | D33: =E.Datos2!E23 -> 0 | E33: 1.2 | F33: 0
B34: Cerdos de 20 a 100 kg. | D34: =E.Datos2!E24 -> 0 | E34: 1.2 | F34: 0
B35: Madres con lechones de 0 a 6 kg. | D35: =E.Datos2!E25 -> 0 | E35: 1.5 | F35: 0
B36: Madres con lechones hasta 20 kg. | D36: =E.Datos2!E26 -> 0 | E36: 1.5 | F36: 0
B37: Cerdas de reposición | D37: =E.Datos2!E27 -> 0 | E37: 1.5 | F37: 0
B38: Cerdas en ciclo cerrado | D38: =E.Datos2!E28 -> 0 | E38: 10.5 | F38: 0
B39: Verracos | D39: =E.Datos2!E29 -> 0 | E39: 1.5 | F39: 0
E40: Total | F40: =SUM(F31:F39) -> 0

Sheet Resultados PRTR
B2: EMISIONES A NOTIFICAR EN PRTR-ESPAÑA
B3: Sustancia | C3: kg/año
B4: Amoniaco (NH3) | C4: =IF(Calculos!CO18=0,"",Calculos!CO18) -> 
B5: Óxido nitroso (N2O) | C5: =IF(Calculos!BB18+Calculos!BL18=0,"",Calculos!BB18+Calculos!BL18) -> 
B6: Óxidos de nitrógeno (NOx) | C6: =IF(Calculos!BD18+Calculos!BN18=0,"",Calculos!BD18+Calculos!BN18) -> 
B7: Metano (CH4) | C7: =IF(SUM(Metano!J24+Metano!F40)=0,"",SUM(Metano!J24+Metano!F40)) -> 
B12: Estas emisiones deben notificarse en la plataforma PRTR- España con:
B14: * Método de otención del dato: "Calculado".
B15: * Origen del método: "SSC".
B16: * Método de cálculo: "Otros". Estimador de emisiones de amoniaco y de nitrógeno en explotaciones de Porcino-MAPA.
B17: * Fuentes o referencias: "Otros". Estimador de emisiones de amoniaco y de nitrógeno en explotaciones de Porcino-MAPA.
B19: En CH4 tanto en método de cálculo como fuentes / referencias debe indicar:
B21: * Cuadro de cálculo de emisiones de gases de sector ganadero en relación con la directiva IPPC.

Sheet Result. N (hidden)
D1: GANADO PORCINO
G4: IDENTIFICACION DE LA EXPLOTACION
G5: NOMBRE
G7: Nº REGISTRO REGA
G9: RESPONSABLE
G11: MODULO/NAVE
G13: AÑO DE CONSTRUCCIÓN
G14: AÑO ÚLTIMA REFORMA
G16: LOCALIZACION
E20: RESULTADOS DE EXPLOTACIÓN
F22: Emisiones en NAVE | H22: Emisiones de Nitrógeno (kg N/año)
G23: Referencia* | H23: Explotación | M23: Referencia*
F24: N - NH3 | G24: N - NH3 | H24: N - NH3 | I24: N - NOx | J24: N - N2O | K24: N - N2 | L24: N-total | M24: N-total
C25: Total | F25: =(Calculos!AD18+Calculos!AE18) -> 0 | G25: =Calculos!AD47+Calculos!AE47 -> 0 | H25: =Calculos!CJ18 -> 0 | I25: =Calculos!CM18 -> 0 | J25: =Calculos!CK18 -> 0 | K25: =Calculos!CL18 -> 0 | L25: =Calculos!CN18 -> 0 | M25: =Calculos!CN47 -> 0
C26: Kg/plaza/año | F26: =IF(Calculos!C18=0,0,F25/Calculos!C18) -> 0 | G26: =IF(Calculos!C47=0,0,G25/Calculos!C47) -> 0 | H26: =IF(Calculos!$C$18=0,0,H25/Calculos!$C$18) -> 0 | I26: =IF(Calculos!$C$18=0,0,I25/Calculos!$C$18) -> 0 | J26: =IF(Calculos!$C$18=0,0,J25/Calculos!$C$18) -> 0 | K26: =IF(Calculos!$C$18=0,0,K25/Calculos!$C$18) -> 0 | L26: =IF(Calculos!$C$18=0,0,L25/Calculos!$C$18) -> 0 | M26: =IF(Calculos!$C$18=0,0,M25/Calculos!$C$18) -> 0
C27: % N emitido sobre N excretado | H27: =IF($H$34=0,0,H25/$H$34*100) -> 0 | I27: =IF($H$34=0,0,I25/$H$34*100) -> 0 | J27: 0 | K27: 0 | L27: 0 | M27: 0
C28: % N respecto a situación de referencia | H28: =IF(Calculos!CO47=0,0,Calculos!CO18/Calculos!CO47*100) -> 0 | I28: =IF(Calculos!CM47=0," ",Calculos!CM18/Calculos!CM47*100) ->  | J28: =IF(Calculos!CK47=0," ",Calculos!CK18/Calculos!CK47*100) ->  | K28: =IF(Calculos!CL47=0," ",Calculos!CL18/Calculos!CL47*100) ->  | L28: =IF(M25=0,0,L25/M25*100) -> 0
E29: * La situación de referencia corresponden al empleo de las técnicas menos eficientes o más contaminantes.
H31: Nitrógeno excretado | J31: N retenido en purín
H32: Explotación | J32: Explotación | L32: Referencia*
H33: (kg N / año) | J33: (kg N / año) | L33: N
E34: Total granja | H34: =Calculos!E18 -> 0 | J34: =Calculos!CF18 -> 0 | L34: =Calculos!CF47 -> 0
E35: Kg/plaza/año | H35: =IF(Calculos!C18=0,0,H34/Calculos!C18) -> 0 | J35: =IF(Calculos!$C$18=0,0,J34/Calculos!C18) -> 0 | L35: =IF(Calculos!$C$18=0,0,L34/Calculos!C18) -> 0
E36: % N sobre N excretado | H36: =H34/H34*100 ->  | J36: =J34/H34*100 ->  | L36: =L34/H34*100 -> 
E37: * La situación de referencia corresponden al empleo de las técnicas menos eficientes o más contaminantes.

Sheet Calculos (hidden)
A1: SPECIE | B1: CAT_AA | C1: N_AA | D1: N excreted | H1: N Distribution | K1: GRAZING | Q1: YARD_solid+slurry | W1: BUILD | AF1: STRAW_exBUILD_solid (kgN) | AL1: DISTRIBUTION_exBUILD_solid | AP1: DISTRIBUTION_BUILD_slurry | AU1: DISTRIBUCION_YARD_solid+slurry (=YARD) | AY1: STORE_solid (kg N) | BH1: STORE_slurry (kg N) | BR1: DISTRIBUCION_STORE_solid | BT1: DISTRIBUCION_STORE_slurry | BV1: FIELD_solid | CA1: FIELD_slurry | CF1: FIELD TOTAL | CH1: OTHERS | CJ1: EE N-NH3 TOTAL | CK1: EE N-N2O | CL1: EE N-N2 | CM1: EE N-NOx | CN1: EE N-TOTAL | CO1: EE-NH3
D2: Nex_T / AA | E2: Nex_T | F2: x_TAN-T | G2: TAN-T | H2: x_GRAZ | I2: x_YARD | J2: x_BUILD | K2: N_GRAZ | L2: TAN_GRAZ | M2: EE_GRAZ | N2: N_ret_GRAZ | O2: TAN_GRAZING_solid+slurry | P2: CHECK-1 | Q2: N_YARD_solid+slurry | R2: TAN_YARD_solid+slurry | S2: EE_YARD_solid+slurry | T2: N_ret_YARD | U2: TAN_YARD_solid+slurry | V2: CHECK-2 | W2: X_BUILD_solid | X2: X_BUILD_slurry | Y2: N_BUILD_solid | Z2: N_BUILD_slurry | AA2: TAN_BUILD_solid | AB2: TAN_BUILD_slurry | AC2: CHECK-3 | AD2: EE_BUILD_solid | AE2: EE_BUILD_slurry | AF2: N_STRAW | AG2: N_exBUILD_solid | AH2: TAN_exBUILD_solid | AI2: N_ex_BUILD_slurry | AJ2: TAN_ex_BUILD_slurry | AK2: CHECK-4 | AL2: x_exBUILD_solid-to-STORE_solid | AM2: x_exBUILD_solid-to-STORE_slurry | AN2: x_exBUILD_solid-to-FIELD_solid | AO2: x_exBUILD_solid-to-OTHER | AP2: x_BUILD_slurry-to-STORE_solid | AQ2: x_BUILD_slurry-to-STORE_slurry | AR2: x_BUILD_slurry-to-FIELD_solid | AS2: x_BUILD_slurry-to-FIELD_slurry | AT2: x_BUILD_slurry-to-OTHERS | AU2: x_YARD-to-STORE_solid | AV2: x_YARD-to-STORE_slurry | AW2: x_YARD-to-FIELD_solid | AX2: x_YARD-to-OTHERS | AY2: N_STORE_solid | AZ2: TAN_STORE_solid | BA2: EE_NH3_STORE_solid | BB2: EE_N2O_STORE_solid | BC2: EE_N2_STORE_solid | BD2: EE_NOx_STORE_solid | BE2: N_ex_STORE_solid | BF2: TAN_ex_STORE_solid | BG2: CHECK-5 | BH2: N_STORE_slurry | BI2: TAN_STORE_slurry | BJ2: minTAN_STORE_slurry | BK2: EE_NH3_STORE_slurry | BL2: EE_N2O_STORE_slurry | BM2: EE_N2_STORE_slurry | BN2: EE_NOx_STORE_slurry | BO2: N_ex_STORE_slurry | BP2: TAN_ex_STORE_slurry | BQ2: CHECK-6 | BR2: x_STORE_solid-to-FIELD_solid | BS2: x_STORE_slurry-to-OTHERS | BT2: x_STORE_slurry-to-FIELD_slurry | BU2: x_STORE_slurry-to-OTHERS | BV2: N_FIELD_solid | BW2: TAN_FIELD_solid | BX2: EE_FIELD_solid | BY2: N_ex_FIELD_solid | BZ2: TAN_ex_FIELD_solid | CA2: N_FIELD_slurry | CB2: TAN_FIELD_slurry | CC2: EE_FIELD_slurry | CD2: N_ex_SFIELD_slurry | CE2: TAN_ex_FIELD_slurry | CF2: N_ex_SFIELD_total | CG2: TAN_ex_FIELD_total | CH2: N_OTHERS_solid | CI2: TAN_total | CJ2: (PM=17) | CK2: (PM=44) | CL2: (PM=28) | CM2: (PM=46) | CN2: kg N | CO2: kg NH3 | CP2: CHECK
C3: nº animals | D3: kg N/AA | E3: kg N | F3: kg N-TAN/AA | G3: kg N-TAN | K3: Kg N | L3: Kg N-NH3 | M3: kg N-NH3 | N3: Kg N | O3: kg N-NH3 | Q3: Kg N | R3: Kg N-NH3 | S3: kg N-NH3 | T3: Kg N | U3: kg N-NH3 | Y3: Kg N | Z3: Kg N | AA3: kg N-NH3 | AB3: kg N-NH3 | AD3: kg N-NH3 | AE3: kg N-NH3 | AF3: kg N / AA | AG3: N_ret_BUILD_solid | AH3: TAN_ret_BUILD_solid | AI3: N_ret_BUILD_slurry | AJ3: TAN_ret_BUILD_slurry | BA3: kg N-NH3 | BB3: kg N2O | BC3: kg N2 | BD3: kg NOx | BE3: N_ret_STORE_solid | BF3: TAN_ret_STORE_solid | BK3: kg N-NH3 | BL3: kg N2O | BM3: kg N2 | BN3: kg NOx | BO3: N_ret_STORE_slurry | BP3: TAN_ret_STORE_slurry | BV3: kg N | BW3: kg | BX3: kg N-NH3 | BY3: N_ret_FIELD_solid | BZ3: TAN_ret_FIELD_solid | CA3: kg N | CB3: kg | CC3: kg N-NH3 | CD3: N_ret_FIELD_slurry | CE3: TAN_ret_FIELD_slurry | CF3: N_ret_FIELD_total | CG3: TAN_ret_FIELD_total | CH3: kg N | CI3: kg | CJ3: kg N | CK3: kg N | CL3: kg N | CM3: kg N
A4: CERDO | B4: Lechones destetados | C4: =E.Datos!E25 -> 0 | D4: 3.45 | E4: =C4*D4 -> 0 | F4: ='F.Dist.'!D4 -> 0.7362318841 | G4: =E4*F4 -> 0 | H4: ='F.Dist.'!E4 -> 0 | I4: ='F.Dist.'!F4 -> 0 | J4: ='F.Dist.'!G4 -> 1 | K4: =E4*H4 -> 0 | L4: =G4*H4 -> 0 | M4: =L4*'F.EE.'!F3 -> 0 | N4: =K4-M4 -> 0 | O4: =L4-M4 -> 0 | P4: =(H4*G4)-(M4+O4) -> 0 | Q4: =E4*I4 -> 0 | R4: =G4*I4 -> 0 | S4: =R4*'F.EE.'!I3 -> 0 | T4: =Q4-S4 -> 0 | U4: =R4-S4 -> 0 | V4: =T4+S4+N4+M4-(E4*H4+E4*I4) -> 0 | W4: ='F.Dist.'!H4 -> 0 | X4: ='F.Dist.'!I4 -> 1 | Y4: =E4*J4*W4 -> 0 | Z4: =E4*J4*X4 -> 0 | AA4: =G4*J4*W4 -> 0 | AB4: =G4*J4*X4 -> 0 | AC4: =(AA4+AB4)-G4*J4 -> 0 | AD4: =AA4*'F.EE.'!M3 -> 0 | AE4: =AB4*'F.EE.'!Q3 -> 0 | AF4: ='F.Dist.'!J4 -> 0 | AG4: =(C4*AF4*J4*W4)+Y4-AD4 -> 0 | AH4: =(AA4-AD4)*(1-0.0067) -> 0 | AI4: =Z4-AE4 -> 0 | AJ4: =AB4-AE4 -> 0 | AK4: =(AG4+AI4+T4+N4)+(M4+S4+AD4+AE4)-(E4+AF4*C4*J4*W4) -> 0 | AL4: ='F.Dist.'!L4 -> 0 | AM4: ='F.Dist.'!M4 -> 0 | AN4: ='F.Dist.'!N4 -> 0 | AO4: ='F.Dist.'!O4 -> 0 | AP4: ='F.Dist.'!R4 -> 0 | AQ4: ='F.Dist.'!S4 -> 1 | AR4: ='F.Dist.'!U4 -> 0 | AS4: ='F.Dist.'!V4 -> 0 | AT4: ='F.Dist.'!W4 -> 0 | AU4: ='F.Dist.'!Y4 -> 0 | AV4: ='F.Dist.'!Z4 -> 0 | AW4: ='F.Dist.'!AA4 -> 0 | AX4: ='F.Dist.'!AB4 -> 0 | AY4: =AG4*AL4+T4*AU4+AI4*AP4 -> 0 | AZ4: =AH4*AL4+AJ4*AP4+U4*AU4 -> 0 | BA4: =AZ4*'F.EE.'!T3 -> 0 | BB4: =(AZ4*'F.EE.'!AE3) -> 0 | BC4: =(AZ4*'F.EE.'!AF3) -> 0 | BD4: =(AZ4*'F.EE.'!AG3) -> 0 | BE4: =AY4-BA4-BB4*(28/44)-BC4-BD4*(14/46) -> 0 | BF4: =AZ4-BA4-BB4*(28/44)-BC4-BD4*(14/46) -> 0 | BG4: =(BE4+BA4+BC4+BB4*28/44+BD4*14/46)-AY4 -> 0 | BH4: =AG4*AM4+AI4*AQ4+T4*AV4 -> 0 | BI4: =AH4*AM4+AJ4*AQ4+U4*AV4 -> 0 | BJ4: =BI4+(BH4-BI4)*0.1 -> 0 | BK4: =BJ4*'F.EE.'!W3 -> 0 | BL4: =BJ4*'F.EE.'!AH3 -> 0 | BM4: =BJ4*'F.EE.'!AI3 -> 0 | BN4: =BJ4*'F.EE.'!AJ3 -> 0 | BO4: =BH4-BK4-BL4*(28/44)-BM4-BN4*(14/46) -> 0 | BP4: =BJ4-BK4-BL4*(28/44)-BM4-BN4*(14/46) -> 0 | BQ4: =(BO4+BK4+BM4+BL4*28/44+BN4*14/46)-BH4 -> 0 | BR4: ='F.Dist.'!AD4 -> 0 | BS4: ='F.Dist.'!AE4 -> 1 | BT4: ='F.Dist.'!AF4 -> 0 | BU4: ='F.Dist.'!AG4 -> 1 | BV4: =BE4*BR4+AG4*AN4+AI4*AR4+T4*AW4 -> 0 | BW4: =BF4*BR4+AH4*AN4+AJ4*AR4+U4*AW4 -> 0 | BX4: =BW4*'F.EE.'!Z3 -> 0 | BY4: =BV4-BX4 -> 0 | BZ4: =BW4-BX4 -> 0 | CA4: =AI4*AS4+BO4*BT4 -> 0 | CB4: =AJ4*AS4+BP4*BT4 -> 0 | CC4: =CB4*'F.EE.'!AC3 -> 0 | CD4: =CA4-CC4 -> 0 | CE4: =CB4-CC4 -> 0 | CF4: =CD4+BY4+N4 -> 0 | CG4: =CE4+BZ4+O4 -> 0 | CH4: =T4*AX4+BO4*BU4+BE4*BS4+AI4*AT4+AG4*AO4 -> 0 | CI4: =U4*AX4+BP4*BU4+BF4*BS4+AJ4*AT4+AH4*AO4 -> 0 | CJ4: =CC4+BX4+BK4+BA4+AE4+AD4+S4+M4 -> 0 | CK4: =(BL4+BB4)*28/44 -> 0 | CL4: =(BM4+BC4) -> 0 | CM4: =(BN4+BD4)*14/46 -> 0 | CN4: =SUM(CJ4:CM4) -> 0 | CO4: =CJ4*17/14 -> 0 | CP4: =(E4+(AF4*C4*J4*W4)-(CH4+CN4+CF4)) -> 0
A5: CERDO | B5: Cerdo 20-49 kg | C5: =E.Datos!E27 -> 0 | D5: 8.81 | E5: =C5*D5 -> 0 | F5: ='F.Dist.'!D5 -> 0.7207718502 | G5: =E5*F5 -> 0 | H5: ='F.Dist.'!E5 -> 0 | I5: ='F.Dist.'!F5 -> 0 | J5: ='F.Dist.'!G5 -> 1 | K5: =E5*H5 -> 0 | L5: =G5*H5 -> 0 | M5: =L5*'F.EE.'!F4 -> 0 | N5: =K5-M5 -> 0 | O5: =L5-M5 -> 0 | P5: =(H5*G5)-(M5+O5) -> 0 | Q5: =E5*I5 -> 0 | R5: =G5*I5 -> 0 | S5: =R5*'F.EE.'!I4 -> 0 | T5: =Q5-S5 -> 0 | U5: =R5-S5 -> 0 | V5: =T5+S5+N5+M5-(E5*H5+E5*I5) -> 0 | W5: ='F.Dist.'!H5 -> 0 | X5: ='F.Dist.'!I5 -> 1 | Y5: =E5*J5*W5 -> 0 | Z5: =E5*J5*X5 -> 0 | AA5: =G5*J5*W5 -> 0 | AB5: =G5*J5*X5 -> 0 | AC5: =(AA5+AB5)-G5*J5 -> 0 | AD5: =AA5*'F.EE.'!M4 -> 0 | AE5: =AB5*'F.EE.'!Q4 -> 0 | AF5: ='F.Dist.'!J5 -> 0 | AG5: =(C5*AF5*J5*W5)+Y5-AD5 -> 0 | AH5: =(AA5-AD5)*(1-0.0067) -> 0 | AI5: =Z5-AE5 -> 0 | AJ5: =AB5-AE5 -> 0 | AK5: =(AG5+AI5+T5+N5)+(M5+S5+AD5+AE5)-(E5+AF5*C5*J5*W5) -> 0 | AL5: ='F.Dist.'!L5 -> 0 | AM5: ='F.Dist.'!M5 -> 0 | AN5: ='F.Dist.'!N5 -> 0 | AO5: ='F.Dist.'!O5 -> 0 | AP5: ='F.Dist.'!R5 -> 0 | AQ5: ='F.Dist.'!S5 -> 1 | AR5: ='F.Dist.'!U5 -> 0 | AS5: ='F.Dist.'!V5 -> 0 | AT5: ='F.Dist.'!W5 -> 0 | AU5: ='F.Dist.'!Y5 -> 0 | AV5: ='F.Dist.'!Z5 -> 0 | AW5: ='F.Dist.'!AA5 -> 0 | AX5: ='F.Dist.'!AB5 -> 0 | AY5: =AG5*AL5+T5*AU5+AI5*AP5 -> 0 | AZ5: =AH5*AL5+AJ5*AP5+U5*AU5 -> 0 | BA5: =AZ5*'F.EE.'!T4 -> 0 | BB5: =(AZ5*'F.EE.'!AE4) -> 0 | BC5: =(AZ5*'F.EE.'!AF4) -> 0 | BD5: =(AZ5*'F.EE.'!AG4) -> 0 | BE5: 0 | BF5: 0 | BG5: 0 | BH5: =AG5*AM5+AI5*AQ5+T5*AV5 -> 0 | BI5: =AH5*AM5+AJ5*AQ5+U5*AV5 -> 0 | BJ5: =BI5+(BH5-BI5)*0.1 -> 0 | BK5: =BJ5*'F.EE.'!W4 -> 0 | BL5: =BJ5*'F.EE.'!AH4 -> 0 | BM5: =BJ5*'F.EE.'!AI4 -> 0 | BN5: =BJ5*'F.EE.'!AJ4 -> 0 | BO5: 0 | BP5: 0 | BQ5: 0 | BR5: ='F.Dist.'!AD5 -> 0 | BS5: ='F.Dist.'!AE5 -> 1 | BT5: ='F.Dist.'!AF5 -> 0 | BU5: ='F.Dist.'!AG5 -> 1 | BV5: =BE5*BR5+AG5*AN5+AI5*AR5+T5*AW5 -> 0 | BW5: =BF5*BR5+AH5*AN5+AJ5*AR5+U5*AW5 -> 0 | BX5: =BW5*'F.EE.'!Z4 -> 0 | BY5: =BV5-BX5 -> 0 | BZ5: =BW5-BX5 -> 0 | CA5: =AI5*AS5+BO5*BT5 -> 0 | CB5: =AJ5*AS5+BP5*BT5 -> 0 | CC5: =CB5*'F.EE.'!AC4 -> 0 | CD5: =CA5-CC5 -> 0 | CE5: =CB5-CC5 -> 0 | CF5: =CD5+BY5+N5 -> 0 | CG5: =CE5+BZ5+O5 -> 0 | CH5: =T5*AX5+BO5*BU5+BE5*BS5+AI5*AT5+AG5*AO5 -> 0 | CI5: =U5*AX5+BP5*BU5+BF5*BS5+AJ5*AT5+AH5*AO5 -> 0 | CJ5: =CC5+BX5+BK5+BA5+AE5+AD5+S5+M5 -> 0 | CK5: =(BL5+BB5)*28/44 -> 0 | CL5: =(BM5+BC5) -> 0 | CM5: 0 | CN5: =SUM(CJ5:CM5) -> 0 | CO5: =CJ5*17/14 -> 0 | CP5: =(E5+(AF5*C5*J5*W5)-(CH5+CN5+CF5)) -> 0
A6: CERDO | B6: Cerdo 50-79 kg | C6: =E.Datos!E29 -> 0 | D6: 10.72 | E6: =C6*D6 -> 0 | F6: ='F.Dist.'!D6 -> 0.7210820896 | G6: =E6*F6 -> 0 | H6: ='F.Dist.'!E6 -> 0 | I6: ='F.Dist.'!F6 -> 0 | J6: ='F.Dist.'!G6 -> 1 | K6: =E6*H6 -> 0 | L6: =G6*H6 -> 0 | M6: =L6*'F.EE.'!F5 -> 0 | N6: =K6-M6 -> 0 | O6: =L6-M6 -> 0 | P6: =(H6*G6)-(M6+O6) -> 0 | Q6: =E6*I6 -> 0 | R6: =G6*I6 -> 0 | S6: =R6*'F.EE.'!I5 -> 0 | T6: =Q6-S6 -> 0 | U6: =R6-S6 -> 0 | V6: =T6+S6+N6+M6-(E6*H6+E6*I6) -> 0 | W6: ='F.Dist.'!H6 -> 0 | X6: ='F.Dist.'!I6 -> 1 | Y6: =E6*J6*W6 -> 0 | Z6: =E6*J6*X6 -> 0 | AA6: =G6*J6*W6 -> 0 | AB6: =G6*J6*X6 -> 0 | AC6: =(AA6+AB6)-G6*J6 -> 0 | AD6: =AA6*'F.EE.'!M5 -> 0 | AE6: =AB6*'F.EE.'!Q5 -> 0 | AF6: ='F.Dist.'!J6 -> 0 | AG6: =(C6*AF6*J6*W6)+Y6-AD6 -> 0 | AH6: =(AA6-AD6)*(1-0.0067) -> 0 | AI6: =Z6-AE6 -> 0 | AJ6: =AB6-AE6 -> 0 | AK6: =(AG6+AI6+T6+N6)+(M6+S6+AD6+AE6)-(E6+AF6*C6*J6*W6) -> 0 | AL6: ='F.Dist.'!L6 -> 0 | AM6: ='F.Dist.'!M6 -> 0 | AN6: ='F.Dist.'!N6 -> 0 | AO6: ='F.Dist.'!O6 -> 0 | AP6: ='F.Dist.'!R6 -> 0 | AQ6: ='F.Dist.'!S6 -> 1 | AR6: ='F.Dist.'!U6 -> 0 | AS6: ='F.Dist.'!V6 -> 0 | AT6: ='F.Dist.'!W6 -> 0 | AU6: ='F.Dist.'!Y6 -> 0 | AV6: ='F.Dist.'!Z6 -> 0 | AW6: ='F.Dist.'!AA6 -> 0 | AX6: ='F.Dist.'!AB6 -> 0 | AY6: =AG6*AL6+T6*AU6+AI6*AP6 -> 0 | AZ6: =AH6*AL6+AJ6*AP6+U6*AU6 -> 0 | BA6: =AZ6*'F.EE.'!T5 -> 0 | BB6: =(AZ6*'F.EE.'!AE5) -> 0 | BC6: =(AZ6*'F.EE.'!AF5) -> 0 | BD6: =(AZ6*'F.EE.'!AG5) -> 0 | BE6: 0 | BF6: 0 | BG6: 0 | BH6: =AG6*AM6+AI6*AQ6+T6*AV6 -> 0 | BI6: =AH6*AM6+AJ6*AQ6+U6*AV6 -> 0 | BJ6: =BI6+(BH6-BI6)*0.1 -> 0 | BK6: =BJ6*'F.EE.'!W5 -> 0 | BL6: =BJ6*'F.EE.'!AH5 -> 0 | BM6: =BJ6*'F.EE.'!AI5 -> 0 | BN6: =BJ6*'F.EE.'!AJ5 -> 0 | BO6: 0 | BP6: 0 | BQ6: 0 | BR6: ='F.Dist.'!AD6 -> 0 | BS6: ='F.Dist.'!AE6 -> 1 | BT6: ='F.Dist.'!AF6 -> 0 | BU6: ='F.Dist.'!AG6 -> 1 | BV6: =BE6*BR6+AG6*AN6+AI6*AR6+T6*AW6 -> 0 | BW6: =BF6*BR6+AH6*AN6+AJ6*AR6+U6*AW6 -> 0 | BX6: =BW6*'F.EE.'!Z5 -> 0 | BY6: =BV6-BX6 -> 0 | BZ6: =BW6-BX6 -> 0 | CA6: =AI6*AS6+BO6*BT6 -> 0 | CB6: =AJ6*AS6+BP6*BT6 -> 0 | CC6: =CB6*'F.EE.'!AC5 -> 0 | CD6: =CA6-CC6 -> 0 | CE6: =CB6-CC6 -> 0 | CF6: =CD6+BY6+N6 -> 0 | CG6: =CE6+BZ6+O6 -> 0 | CH6: =T6*AX6+BO6*BU6+BE6*BS6+AI6*AT6+AG6*AO6 -> 0 | CI6: =U6*AX6+BP6*BU6+BF6*BS6+AJ6*AT6+AH6*AO6 -> 0 | CJ6: =CC6+BX6+BK6+BA6+AE6+AD6+S6+M6 -> 0 | CK6: =(BL6+BB6)*28/44 -> 0 | CL6: =(BM6+BC6) -> 0 | CM6: 0 | CN6: =SUM(CJ6:CM6) -> 0 | CO6: =CJ6*17/14 -> 0 | CP6: =(E6+(AF6*C6*J6*W6)-(CH6+CN6+CF6)) -> 0
A7: CERDO | B7: Cerdo 80-109 kg | C7: =E.Datos!E31 -> 0 | D7: 11.68 | E7: 0 | F7: ='F.Dist.'!D7 -> 0.7200342466 | G7: 0 | H7: ='F.Dist.'!E7 -> 0 | I7: ='F.Dist.'!F7 -> 0 | J7: ='F.Dist.'!G7 -> 1 | K7: 0 | L7: 0 | M7: =L7*'F.EE.'!F6 -> 0 | N7: 0 | O7: 0 | P7: =(H7*G7)-(M7+O7) -> 0 | Q7: 0 | R7: 0 | S7: =R7*'F.EE.'!I6 -> 0 | T7: 0 | U7: 0 | V7: =T7+S7+N7+M7-(E7*H7+E7*I7) -> 0 | W7: ='F.Dist.'!H7 -> 0 | X7: ='F.Dist.'!I7 -> 1 | Y7: 0 | Z7: 0 | AA7: 0 | AB7: 0 | AC7: 0 | AD7: =AA7*'F.EE.'!M6 -> 0 | AE7: =AB7*'F.EE.'!Q6 -> 0 | AF7: ='F.Dist.'!J7 -> 0 | AG7: 0 | AH7: 0 | AI7: 0 | AJ7: 0 | AK7: 0 | AL7: ='F.Dist.'!L7 -> 0 | AM7: ='F.Dist.'!M7 -> 0 | AN7: ='F.Dist.'!N7 -> 0 | AO7: ='F.Dist.'!O7 -> 0 | AP7: ='F.Dist.'!R7 -> 0 | AQ7: ='F.Dist.'!S7 -> 1 | AR7: ='F.Dist.'!U7 -> 0 | AS7: ='F.Dist.'!V7 -> 0 | AT7: ='F.Dist.'!W7 -> 0 | AU7: ='F.Dist.'!Y7 -> 0 | AV7: ='F.Dist.'!Z7 -> 0 | AW7: ='F.Dist.'!AA7 -> 0 | AX7: ='F.Dist.'!AB7 -> 0 | AY7: 0 | AZ7: 0 | BA7: =AZ7*'F.EE.'!T6 -> 0 | BB7: =(AZ7*'F.EE.'!AE6) -> 0 | BC7: =(AZ7*'F.EE.'!AF6) -> 0 | BD7: =(AZ7*'F.EE.'!AG6) -> 0 | BE7: 0 | BF7: 0 | BG7: 0 | BH7: 0 | BI7: 0 | BJ7: 0 | BK7: =BJ7*'F.EE.'!W6 -> 0 | BL7: =BJ7*'F.EE.'!AH6 -> 0 | BM7: =BJ7*'F.EE.'!AI6 -> 0 | BN7: =BJ7*'F.EE.'!AJ6 -> 0 | BO7: 0 | BP7: 0 | BQ7: 0 | BR7: ='F.Dist.'!AD7 -> 0 | BS7: ='F.Dist.'!AE7 -> 1 | BT7: ='F.Dist.'!AF7 -> 0 | BU7: ='F.Dist.'!AG7 -> 1 | BV7: =BE7*BR7+AG7*AN7+AI7*AR7+T7*AW7 -> 0 | BW7: 0 | BX7: =BW7*'F.EE.'!Z6 -> 0 | BY7: =BV7-BX7 -> 0 | BZ7: 0 | CA7: 0 | CB7: 0 | CC7: =CB7*'F.EE.'!AC6 -> 0 | CD7: 0 | CE7: 0 | CF7: =CD7+BY7+N7 -> 0 | CG7: 0 | CH7: 0 | CI7: 0 | CJ7: 0 | CK7: 0 | CL7: 0 | CM7: 0 | CN7: 0 | CO7: 0 | CP7: 0
A8: CERDO | B8: Cerdo > 110 kg | C8: =E.Datos!E33 -> 0 | D8: 12.06 | E8: 0 | F8: ='F.Dist.'!D8 -> 0.7023217247 | G8: 0 | H8: ='F.Dist.'!E8 -> 0 | I8: ='F.Dist.'!F8 -> 0 | J8: ='F.Dist.'!G8 -> 1 | K8: 0 | L8: 0 | M8: =L8*'F.EE.'!F7 -> 0 | N8: 0 | O8: 0 | P8: 0 | Q8: 0 | R8: 0 | S8: =R8*'F.EE.'!I7 -> 0 | T8: 0 | U8: 0 | V8: 0 | W8: ='F.Dist.'!H8 -> 0 | X8: ='F.Dist.'!I8 -> 1 | Y8: =E8*J8*W8 -> 0 | Z8: 0 | AA8: 0 | AB8: 0 | AC8: =(AA8+AB8)-G8*J8 -> 0 | AD8: =AA8*'F.EE.'!M7 -> 0 | AE8: =AB8*'F.EE.'!Q7 -> 0 | AF8: ='F.Dist.'!J8 -> 0 | AG8: 0 | AH8: 0 | AI8: 0 | AJ8: 0 | AK8: 0 | AL8: ='F.Dist.'!L8 -> 0 | AM8: ='F.Dist.'!M8 -> 0 | AN8: ='F.Dist.'!N8 -> 0 | AO8: ='F.Dist.'!O8 -> 0 | AP8: ='F.Dist.'!R8 -> 0 | AQ8: ='F.Dist.'!S8 -> 1 | AR8: ='F.Dist.'!U8 -> 0 | AS8: ='F.Dist.'!V8 -> 0 | AT8: ='F.Dist.'!W8 -> 0 | AU8: ='F.Dist.'!Y8 -> 0 | AV8: ='F.Dist.'!Z8 -> 0 | AW8: ='F.Dist.'!AA8 -> 0 | AX8: ='F.Dist.'!AB8 -> 0 | AY8: 0 | AZ8: 0 | BA8: =AZ8*'F.EE.'!T7 -> 0 | BB8: =(AZ8*'F.EE.'!AE7) -> 0 | BC8: =(AZ8*'F.EE.'!AF7) -> 0 | BD8: =(AZ8*'F.EE.'!AG7) -> 0 | BE8: 0 | BF8: 0 | BG8: 0 | BH8: 0 | BI8: 0 | BJ8: 0 | BK8: =BJ8*'F.EE.'!W7 -> 0 | BL8: =BJ8*'F.EE.'!AH7 -> 0 | BM8: =BJ8*'F.EE.'!AI7 -> 0 | BN8: =BJ8*'F.EE.'!AJ7 -> 0 | BO8: 0 | BP8: 0 | BQ8: 0 | BR8: ='F.Dist.'!AD8 -> 0 | BS8: ='F.Dist.'!AE8 -> 1 | BT8: ='F.Dist.'!AF8 -> 0 | BU8: ='F.Dist.'!AG8 -> 1 | BV8: 0 | BW8: 0 | BX8: =BW8*'F.EE.'!Z7 -> 0 | BY8: 0 | BZ8: 0 | CA8: 0 | CB8: 0 | CC8: =CB8*'F.EE.'!AC7 -> 0 | CD8: 0 | CE8: 0 | CF8: 0 | CG8: 0 | CH8: 0 | CI8: 0 | CJ8: 0 | CK8: 0 | CL8: 0 | CM8: 0 | CN8: 0 | CO8: 0 | CP8: 0
A9: CERDO | B9: Verracos jóvenes | C9: =E.Datos!E35 -> 0 | D9: 16.22 | E9: 0 | F9: ='F.Dist.'!D9 -> 0.7663378545 | G9: 0 | H9: ='F.Dist.'!E9 -> 0 | I9: ='F.Dist.'!F9 -> 0 | J9: ='F.Dist.'!G9 -> 1 | K9: 0 | L9: 0 | M9: =L9*'F.EE.'!F8 -> 0 | N9: 0 | O9: 0 | P9: 0 | Q9: 0 | R9: 0 | S9: =R9*'F.EE.'!I8 -> 0 | T9: 0 | U9: 0 | V9: 0 | W9: ='F.Dist.'!H9 -> 0 | X9: ='F.Dist.'!I9 -> 1 | Y9: 0 | Z9: 0 | AA9: 0 | AB9: 0 | AC9: 0 | AD9: =AA9*'F.EE.'!M8 -> 0 | AE9: =AB9*'F.EE.'!Q8 -> 0 | AF9: ='F.Dist.'!J9 -> 0 | AG9: 0 | AH9: 0 | AI9: 0 | AJ9: 0 | AK9: 0 | AL9: ='F.Dist.'!L9 -> 0 | AM9: ='F.Dist.'!M9 -> 0 | AN9: ='F.Dist.'!N9 -> 0 | AO9: ='F.Dist.'!O9 -> 0 | AP9: ='F.Dist.'!R9 -> 0 | AQ9: ='F.Dist.'!S9 -> 1 | AR9: ='F.Dist.'!U9 -> 0 | AS9: ='F.Dist.'!V9 -> 0 | AT9: ='F.Dist.'!W9 -> 0 | AU9: ='F.Dist.'!Y9 -> 0 | AV9: ='F.Dist.'!Z9 -> 0 | AW9: ='F.Dist.'!AA9 -> 0 | AX9: ='F.Dist.'!AB9 -> 0 | AY9: 0 | AZ9: 0 | BA9: =AZ9*'F.EE.'!T8 -> 0 | BB9: =(AZ9*'F.EE.'!AE8) -> 0 | BC9: =(AZ9*'F.EE.'!AF8) -> 0 | BD9: =(AZ9*'F.EE.'!AG8) -> 0 | BE9: 0 | BF9: 0 | BG9: 0 | BH9: 0 | BI9: 0 | BJ9: 0 | BK9: =BJ9*'F.EE.'!W8 -> 0 | BL9: =BJ9*'F.EE.'!AH8 -> 0 | BM9: =BJ9*'F.EE.'!AI8 -> 0 | BN9: =BJ9*'F.EE.'!AJ8 -> 0 | BO9: 0 | BP9: 0 | BQ9: 0 | BR9: ='F.Dist.'!AD9 -> 0 | BS9: ='F.Dist.'!AE9 -> 1 | BT9: ='F.Dist.'!AF9 -> 0 | BU9: ='F.Dist.'!AG9 -> 1 | BV9: 0 | BW9: 0 | BX9: =BW9*'F.EE.'!Z8 -> 0 | BY9: 0 | BZ9: 0 | CA9: 0 | CB9: 0 | CC9: =CB9*'F.EE.'!AC8 -> 0 | CD9: 0 | CE9: 0 | CF9: 0 | CG9: 0 | CH9: 0 | CI9: 0 | CJ9: 0 | CK9: 0 | CL9: 0 | CM9: 0 | CN9: 0 | CO9: 0 | CP9: 0
A10: CERDO | B10: Verracos adultos | C10: =E.Datos!E37 -> 0 | D10: 18.75 | E10: 0 | F10: ='F.Dist.'!D10 -> 0.7488 | G10: 0 | H10: ='F.Dist.'!E10 -> 0 | I10: ='F.Dist.'!F10 -> 0 | J10: ='F.Dist.'!G10 -> 1 | K10: 0 | L10: 0 | M10: =L10*'F.EE.'!F9 -> 0 | N10: 0 | O10: 0 | P10: 0 | Q10: 0 | R10: 0 | S10: =R10*'F.EE.'!I9 -> 0 | T10: 0 | U10: 0 | V10: 0 | W10: ='F.Dist.'!H10 -> 0 | X10: ='F.Dist.'!I10 -> 1 | Y10: 0 | Z10: 0 | AA10: 0 | AB10: 0 | AC10: 0 | AD10: =AA10*'F.EE.'!M9 -> 0 | AE10: =AB10*'F.EE.'!Q9 -> 0 | AF10: ='F.Dist.'!J10 -> 0 | AG10: 0 | AH10: 0 | AI10: 0 | AJ10: 0 | AK10: 0 | AL10: ='F.Dist.'!L10 -> 0 | AM10: ='F.Dist.'!M10 -> 0 | AN10: ='F.Dist.'!N10 -> 0 | AO10: ='F.Dist.'!O10 -> 0 | AP10: ='F.Dist.'!R10 -> 0 | AQ10: ='F.Dist.'!S10 -> 1 | AR10: ='F.Dist.'!U10 -> 0 | AS10: ='F.Dist.'!V10 -> 0 | AT10: ='F.Dist.'!W10 -> 0 | AU10: ='F.Dist.'!Y10 -> 0 | AV10: ='F.Dist.'!Z10 -> 0 | AW10: ='F.Dist.'!AA10 -> 0 | AX10: ='F.Dist.'!AB10 -> 0 | AY10: 0 | AZ10: 0 | BA10: =AZ10*'F.EE.'!T9 -> 0 | BB10: =(AZ10*'F.EE.'!AE9) -> 0 | BC10: =(AZ10*'F.EE.'!AF9) -> 0 | BD10: =(AZ10*'F.EE.'!AG9) -> 0 | BE10: 0 | BF10: 0 | BG10: 0 | BH10: 0 | BI10: 0 | BJ10: 0 | BK10: =BJ10*'F.EE.'!W9 -> 0 | BL10: =BJ10*'F.EE.'!AH9 -> 0 | BM10: =BJ10*'F.EE.'!AI9 -> 0 | BN10: =BJ10*'F.EE.'!AJ9 -> 0 | BO10: 0 | BP10: 0 | BQ10: 0 | BR10: ='F.Dist.'!AD10 -> 0 | BS10: ='F.Dist.'!AE10 -> 1 | BT10: ='F.Dist.'!AF10 -> 0 | BU10: ='F.Dist.'!AG10 -> 1 | BV10: 0 | BW10: 0 | BX10: =BW10*'F.EE.'!Z9 -> 0 | BY10: 0 | BZ10: 0 | CA10: 0 | CB10: 0 | CC10: =CB10*'F.EE.'!AC9 -> 0 | CD10: 0 | CE10: 0 | CF10: 0 | CG10: 0 | CH10: 0 | CI10: 0 | CJ10: 0 | CK10: 0 | CL10: 0 | CM10: 0 | CN10: 0 | CO10: 0 | CP10: 0
A11: CERDO | B11: Reproductora no cubierta | C11: =E.Datos!E39 -> 0 | D11: 13.2 | E11: 0 | F11: ='F.Dist.'!D11 -> 0.678030303 | G11: 0 | H11: ='F.Dist.'!E11 -> 0 | I11: ='F.Dist.'!F11 -> 0 | J11: ='F.Dist.'!G11 -> 1 | K11: 0 | L11: 0 | M11: =L11*'F.EE.'!F10 -> 0 | N11: 0 | O11: 0 | P11: 0 | Q11: 0 | R11: 0 | S11: =R11*'F.EE.'!I10 -> 0 | T11: 0 | U11: 0 | V11: 0 | W11: ='F.Dist.'!H11 -> 0 | X11: ='F.Dist.'!I11 -> 1 | Y11: 0 | Z11: 0 | AA11: 0 | AB11: 0 | AC11: 0 | AD11: =AA11*'F.EE.'!M10 -> 0 | AE11: =AB11*'F.EE.'!Q10 -> 0 | AF11: ='F.Dist.'!J11 -> 0 | AG11: 0 | AH11: 0 | AI11: 0 | AJ11: 0 | AK11: 0 | AL11: ='F.Dist.'!L11 -> 0 | AM11: ='F.Dist.'!M11 -> 0 | AN11: ='F.Dist.'!N11 -> 0 | AO11: ='F.Dist.'!O11 -> 0 | AP11: ='F.Dist.'!R11 -> 0 | AQ11: ='F.Dist.'!S11 -> 1 | AR11: ='F.Dist.'!U11 -> 0 | AS11: ='F.Dist.'!V11 -> 0 | AT11: ='F.Dist.'!W11 -> 0 | AU11: ='F.Dist.'!Y11 -> 0 | AV11: ='F.Dist.'!Z11 -> 0 | AW11: ='F.Dist.'!AA11 -> 0 | AX11: ='F.Dist.'!AB11 -> 0 | AY11: 0 | AZ11: 0 | BA11: =AZ11*'F.EE.'!T10 -> 0 | BB11: =(AZ11*'F.EE.'!AE10) -> 0 | BC11: =(AZ11*'F.EE.'!AF10) -> 0 | BD11: =(AZ11*'F.EE.'!AG10) -> 0 | BE11: 0 | BF11: 0 | BG11: 0 | BH11: 0 | BI11: 0 | BJ11: 0 | BK11: =BJ11*'F.EE.'!W10 -> 0 | BL11: =BJ11*'F.EE.'!AH10 -> 0 | BM11: =BJ11*'F.EE.'!AI10 -> 0 | BN11: =BJ11*'F.EE.'!AJ10 -> 0 | BO11: 0 | BP11: 0 | BQ11: 0 | BR11: ='F.Dist.'!AD11 -> 0 | BS11: ='F.Dist.'!AE11 -> 1 | BT11: ='F.Dist.'!AF11 -> 0 | BU11: ='F.Dist.'!AG11 -> 1 | BV11: 0 | BW11: 0 | BX11: =BW11*'F.EE.'!Z10 -> 0 | BY11: 0 | BZ11: 0 | CA11: 0 | CB11: 0 | CC11: =CB11*'F.EE.'!AC10 -> 0 | CD11: 0 | CE11: 0 | CF11: 0 | CG11: 0 | CH11: 0 | CI11: 0 | CJ11: 0 | CK11: 0 | CL11: 0 | CM11: 0 | CN11: 0 | CO11: 0 | CP11: 0
A12: CERDO | B12: Reproductora en 1ª gestación | C12: =E.Datos!E41 -> 0 | D12: 14 | E12: 0 | F12: ='F.Dist.'!D12 -> 0.7157142857 | G12: 0 | H12: ='F.Dist.'!E12 -> 0 | I12: ='F.Dist.'!F12 -> 0 | J12: ='F.Dist.'!G12 -> 1 | K12: 0 | L12: 0 | M12: =L12*'F.EE.'!F11 -> 0 | N12: 0 | O12: 0 | P12: 0 | Q12: 0 | R12: 0 | S12: =R12*'F.EE.'!I11 -> 0 | T12: 0 | U12: 0 | V12: 0 | W12: ='F.Dist.'!H12 -> 0 | X12: ='F.Dist.'!I12 -> 1 | Y12: 0 | Z12: 0 | AA12: 0 | AB12: 0 | AC12: 0 | AD12: =AA12*'F.EE.'!M11 -> 0 | AE12: =AB12*'F.EE.'!Q11 -> 0 | AF12: ='F.Dist.'!J12 -> 0 | AG12: 0 | AH12: 0 | AI12: 0 | AJ12: 0 | AK12: 0 | AL12: ='F.Dist.'!L12 -> 0 | AM12: ='F.Dist.'!M12 -> 0 | AN12: ='F.Dist.'!N12 -> 0 | AO12: ='F.Dist.'!O12 -> 0 | AP12: ='F.Dist.'!R12 -> 0 | AQ12: ='F.Dist.'!S12 -> 1 | AR12: ='F.Dist.'!U12 -> 0 | AS12: ='F.Dist.'!V12 -> 0 | AT12: ='F.Dist.'!W12 -> 0 | AU12: ='F.Dist.'!Y12 -> 0 | AV12: ='F.Dist.'!Z12 -> 0 | AW12: ='F.Dist.'!AA12 -> 0 | AX12: ='F.Dist.'!AB12 -> 0 | AY12: 0 | AZ12: 0 | BA12: =AZ12*'F.EE.'!T11 -> 0 | BB12: =(AZ12*'F.EE.'!AE11) -> 0 | BC12: =(AZ12*'F.EE.'!AF11) -> 0 | BD12: =(AZ12*'F.EE.'!AG11) -> 0 | BE12: 0 | BF12: 0 | BG12: 0 | BH12: 0 | BI12: 0 | BJ12: 0 | BK12: =BJ12*'F.EE.'!W11 -> 0 | BL12: =BJ12*'F.EE.'!AH11 -> 0 | BM12: =BJ12*'F.EE.'!AI11 -> 0 | BN12: =BJ12*'F.EE.'!AJ11 -> 0 | BO12: 0 | BP12: 0 | BQ12: 0 | BR12: ='F.Dist.'!AD12 -> 0 | BS12: ='F.Dist.'!AE12 -> 1 | BT12: ='F.Dist.'!AF12 -> 0 | BU12: ='F.Dist.'!AG12 -> 1 | BV12: 0 | BW12: 0 | BX12: =BW12*'F.EE.'!Z11 -> 0 | BY12: 0 | BZ12: 0 | CA12: 0 | CB12: 0 | CC12: =CB12*'F.EE.'!AC11 -> 0 | CD12: 0 | CE12: 0 | CF12: 0 | CG12: 0 | CH12: 0 | CI12: 0 | CJ12: 0 | CK12: 0 | CL12: 0 | CM12: 0 | CN12: 0 | CO12: 0 | CP12: 0
A13: CERDO | B13: Reproductora en gestación | C13: =E.Datos!E43 -> 0 | D13: 15.7 | E13: 0 | F13: ='F.Dist.'!D13 -> 0.7343949045 | G13: 0 | H13: ='F.Dist.'!E13 -> 0 | I13: ='F.Dist.'!F13 -> 0 | J13: ='F.Dist.'!G13 -> 1 | K13: 0 | L13: 0 | M13: =L13*'F.EE.'!F12 -> 0 | N13: 0 | O13: 0 | P13: 0 | Q13: 0 | R13: 0 | S13: =R13*'F.EE.'!I12 -> 0 | T13: 0 | U13: 0 | V13: 0 | W13: ='F.Dist.'!H13 -> 0 | X13: ='F.Dist.'!I13 -> 1 | Y13: 0 | Z13: 0 | AA13: 0 | AB13: 0 | AC13: 0 | AD13: =AA13*'F.EE.'!M12 -> 0 | AE13: =AB13*'F.EE.'!Q12 -> 0 | AF13: ='F.Dist.'!J13 -> 0 | AG13: 0 | AH13: 0 | AI13: 0 | AJ13: 0 | AK13: 0 | AL13: ='F.Dist.'!L13 -> 0 | AM13: ='F.Dist.'!M13 -> 0 | AN13: ='F.Dist.'!N13 -> 0 | AO13: ='F.Dist.'!O13 -> 0 | AP13: ='F.Dist.'!R13 -> 0 | AQ13: ='F.Dist.'!S13 -> 1 | AR13: ='F.Dist.'!U13 -> 0 | AS13: ='F.Dist.'!V13 -> 0 | AT13: ='F.Dist.'!W13 -> 0 | AU13: ='F.Dist.'!Y13 -> 0 | AV13: ='F.Dist.'!Z13 -> 0 | AW13: ='F.Dist.'!AA13 -> 0 | AX13: ='F.Dist.'!AB13 -> 0 | AY13: 0 | AZ13: 0 | BA13: =AZ13*'F.EE.'!T12 -> 0 | BB13: =(AZ13*'F.EE.'!AE12) -> 0 | BC13: =(AZ13*'F.EE.'!AF12) -> 0 | BD13: =(AZ13*'F.EE.'!AG12) -> 0 | BE13: 0 | BF13: 0 | BG13: 0 | BH13: 0 | BI13: 0 | BJ13: 0 | BK13: =BJ13*'F.EE.'!W12 -> 0 | BL13: =BJ13*'F.EE.'!AH12 -> 0 | BM13: =BJ13*'F.EE.'!AI12 -> 0 | BN13: =BJ13*'F.EE.'!AJ12 -> 0 | BO13: 0 | BP13: 0 | BQ13: 0 | BR13: ='F.Dist.'!AD13 -> 0 | BS13: ='F.Dist.'!AE13 -> 1 | BT13: ='F.Dist.'!AF13 -> 0 | BU13: ='F.Dist.'!AG13 -> 1 | BV13: 0 | BW13: 0 | BX13: =BW13*'F.EE.'!Z12 -> 0 | BY13: 0 | BZ13: 0 | CA13: 0 | CB13: 0 | CC13: =CB13*'F.EE.'!AC12 -> 0 | CD13: 0 | CE13: 0 | CF13: 0 | CG13: 0 | CH13: 0 | CI13: 0 | CJ13: 0 | CK13: 0 | CL13: 0 | CM13: 0 | CN13: 0 | CO13: 0 | CP13: 0
A14: CERDO | B14: Reproductoras criando por 1ª vez | C14: =E.Datos!E45 -> 0 | D14: 37.15 | E14: 0 | F14: ='F.Dist.'!D14 -> 0.7235531629 | G14: 0 | H14: ='F.Dist.'!E14 -> 0 | I14: ='F.Dist.'!F14 -> 0 | J14: ='F.Dist.'!G14 -> 1 | K14: 0 | L14: 0 | M14: =L14*'F.EE.'!F13 -> 0 | N14: 0 | O14: 0 | P14: 0 | Q14: 0 | R14: 0 | S14: =R14*'F.EE.'!I13 -> 0 | T14: 0 | U14: 0 | V14: 0 | W14: ='F.Dist.'!H14 -> 0 | X14: ='F.Dist.'!I14 -> 1 | Y14: 0 | Z14: 0 | AA14: 0 | AB14: 0 | AC14: 0 | AD14: =AA14*'F.EE.'!M13 -> 0 | AE14: =AB14*'F.EE.'!Q13 -> 0 | AF14: ='F.Dist.'!J14 -> 0 | AG14: 0 | AH14: 0 | AI14: 0 | AJ14: 0 | AK14: 0 | AL14: ='F.Dist.'!L14 -> 0 | AM14: ='F.Dist.'!M14 -> 0 | AN14: ='F.Dist.'!N14 -> 0 | AO14: ='F.Dist.'!O14 -> 0 | AP14: ='F.Dist.'!R14 -> 0 | AQ14: ='F.Dist.'!S14 -> 1 | AR14: ='F.Dist.'!U14 -> 0 | AS14: ='F.Dist.'!V14 -> 0 | AT14: ='F.Dist.'!W14 -> 0 | AU14: ='F.Dist.'!Y14 -> 0 | AV14: ='F.Dist.'!Z14 -> 0 | AW14: ='F.Dist.'!AA14 -> 0 | AX14: ='F.Dist.'!AB14 -> 0 | AY14: 0 | AZ14: 0 | BA14: =AZ14*'F.EE.'!T13 -> 0 | BB14: =(AZ14*'F.EE.'!AE13) -> 0 | BC14: =(AZ14*'F.EE.'!AF13) -> 0 | BD14: =(AZ14*'F.EE.'!AG13) -> 0 | BE14: 0 | BF14: 0 | BG14: 0 | BH14: 0 | BI14: 0 | BJ14: 0 | BK14: =BJ14*'F.EE.'!W13 -> 0 | BL14: =BJ14*'F.EE.'!AH13 -> 0 | BM14: =BJ14*'F.EE.'!AI13 -> 0 | BN14: =BJ14*'F.EE.'!AJ13 -> 0 | BO14: 0 | BP14: 0 | BQ14: 0 | BR14: ='F.Dist.'!AD14 -> 0 | BS14: ='F.Dist.'!AE14 -> 1 | BT14: ='F.Dist.'!AF14 -> 0 | BU14: ='F.Dist.'!AG14 -> 1 | BV14: 0 | BW14: 0 | BX14: =BW14*'F.EE.'!Z13 -> 0 | BY14: 0 | BZ14: 0 | CA14: 0 | CB14: 0 | CC14: =CB14*'F.EE.'!AC13 -> 0 | CD14: 0 | CE14: 0 | CF14: 0 | CG14: 0 | CH14: 0 | CI14: 0 | CJ14: 0 | CK14: 0 | CL14: 0 | CM14: 0 | CN14: 0 | CO14: 0 | CP14: 0
A15: CERDO | B15: Reproductoras criando | C15: =E.Datos!E47 -> 0 | D15: 40.06 | E15: 0 | F15: ='F.Dist.'!D15 -> 0.730654019 | G15: 0 | H15: ='F.Dist.'!E15 -> 0 | I15: ='F.Dist.'!F15 -> 0 | J15: ='F.Dist.'!G15 -> 1 | K15: 0 | L15: 0 | M15: =L15*'F.EE.'!F14 -> 0 | N15: 0 | O15: 0 | P15: 0 | Q15: 0 | R15: 0 | S15: =R15*'F.EE.'!I14 -> 0 | T15: 0 | U15: 0 | V15: 0 | W15: ='F.Dist.'!H15 -> 0 | X15: ='F.Dist.'!I15 -> 1 | Y15: 0 | Z15: 0 | AA15: 0 | AB15: 0 | AC15: 0 | AD15: =AA15*'F.EE.'!M14 -> 0 | AE15: =AB15*'F.EE.'!Q14 -> 0 | AF15: ='F.Dist.'!J15 -> 0 | AG15: 0 | AH15: 0 | AI15: 0 | AJ15: 0 | AK15: 0 | AL15: ='F.Dist.'!L15 -> 0 | AM15: ='F.Dist.'!M15 -> 0 | AN15: ='F.Dist.'!N15 -> 0 | AO15: ='F.Dist.'!O15 -> 0 | AP15: ='F.Dist.'!R15 -> 0 | AQ15: ='F.Dist.'!S15 -> 1 | AR15: ='F.Dist.'!U15 -> 0 | AS15: ='F.Dist.'!V15 -> 0 | AT15: ='F.Dist.'!W15 -> 0 | AU15: ='F.Dist.'!Y15 -> 0 | AV15: ='F.Dist.'!Z15 -> 0 | AW15: ='F.Dist.'!AA15 -> 0 | AX15: ='F.Dist.'!AB15 -> 0 | AY15: 0 | AZ15: 0 | BA15: =AZ15*'F.EE.'!T14 -> 0 | BB15: =(AZ15*'F.EE.'!AE14) -> 0 | BC15: =(AZ15*'F.EE.'!AF14) -> 0 | BD15: =(AZ15*'F.EE.'!AG14) -> 0 | BE15: 0 | BF15: 0 | BG15: 0 | BH15: 0 | BI15: 0 | BJ15: 0 | BK15: =BJ15*'F.EE.'!W14 -> 0 | BL15: =BJ15*'F.EE.'!AH14 -> 0 | BM15: =BJ15*'F.EE.'!AI14 -> 0 | BN15: =BJ15*'F.EE.'!AJ14 -> 0 | BO15: 0 | BP15: 0 | BQ15: 0 | BR15: ='F.Dist.'!AD15 -> 0 | BS15: ='F.Dist.'!AE15 -> 1 | BT15: ='F.Dist.'!AF15 -> 0 | BU15: ='F.Dist.'!AG15 -> 1 | BV15: 0 | BW15: 0 | BX15: =BW15*'F.EE.'!Z14 -> 0 | BY15: 0 | BZ15: 0 | CA15: 0 | CB15: 0 | CC15: =CB15*'F.EE.'!AC14 -> 0 | CD15: 0 | CE15: 0 | CF15: 0 | CG15: 0 | CH15: 0 | CI15: 0 | CJ15: 0 | CK15: 0 | CL15: 0 | CM15: 0 | CN15: 0 | CO15: 0 | CP15: 0
A16: CERDO | B16: Reproductoras en reposo 1ª vez | C16: =E.Datos!E49 -> 0 | D16: 14.9 | E16: 0 | F16: ='F.Dist.'!D16 -> 0.8234899329 | G16: 0 | H16: ='F.Dist.'!E16 -> 0 | I16: ='F.Dist.'!F16 -> 0 | J16: ='F.Dist.'!G16 -> 1 | K16: 0 | L16: 0 | M16: =L16*'F.EE.'!F15 -> 0 | N16: 0 | O16: 0 | P16: 0 | Q16: 0 | R16: 0 | S16: =R16*'F.EE.'!I15 -> 0 | T16: 0 | U16: 0 | V16: 0 | W16: ='F.Dist.'!H16 -> 0 | X16: ='F.Dist.'!I16 -> 1 | Y16: 0 | Z16: 0 | AA16: 0 | AB16: 0 | AC16: 0 | AD16: =AA16*'F.EE.'!M15 -> 0 | AE16: =AB16*'F.EE.'!Q15 -> 0 | AF16: ='F.Dist.'!J16 -> 0 | AG16: 0 | AH16: 0 | AI16: 0 | AJ16: 0 | AK16: 0 | AL16: ='F.Dist.'!L16 -> 0 | AM16: ='F.Dist.'!M16 -> 0 | AN16: ='F.Dist.'!N16 -> 0 | AO16: ='F.Dist.'!O16 -> 0 | AP16: ='F.Dist.'!R16 -> 0 | AQ16: ='F.Dist.'!S16 -> 1 | AR16: ='F.Dist.'!U16 -> 0 | AS16: ='F.Dist.'!V16 -> 0 | AT16: ='F.Dist.'!W16 -> 0 | AU16: ='F.Dist.'!Y16 -> 0 | AV16: ='F.Dist.'!Z16 -> 0 | AW16: ='F.Dist.'!AA16 -> 0 | AX16: ='F.Dist.'!AB16 -> 0 | AY16: 0 | AZ16: 0 | BA16: =AZ16*'F.EE.'!T15 -> 0 | BB16: =(AZ16*'F.EE.'!AE15) -> 0 | BC16: =(AZ16*'F.EE.'!AF15) -> 0 | BD16: =(AZ16*'F.EE.'!AG15) -> 0 | BE16: 0 | BF16: 0 | BG16: 0 | BH16: 0 | BI16: 0 | BJ16: 0 | BK16: =BJ16*'F.EE.'!W15 -> 0 | BL16: =BJ16*'F.EE.'!AH15 -> 0 | BM16: =BJ16*'F.EE.'!AI15 -> 0 | BN16: =BJ16*'F.EE.'!AJ15 -> 0 | BO16: 0 | BP16: 0 | BQ16: 0 | BR16: ='F.Dist.'!AD16 -> 0 | BS16: ='F.Dist.'!AE16 -> 1 | BT16: ='F.Dist.'!AF16 -> 0 | BU16: ='F.Dist.'!AG16 -> 1 | BV16: 0 | BW16: 0 | BX16: =BW16*'F.EE.'!Z15 -> 0 | BY16: 0 | BZ16: 0 | CA16: 0 | CB16: 0 | CC16: =CB16*'F.EE.'!AC15 -> 0 | CD16: 0 | CE16: 0 | CF16: 0 | CG16: 0 | CH16: 0 | CI16: 0 | CJ16: 0 | CK16: 0 | CL16: 0 | CM16: 0 | CN16: 0 | CO16: 0 | CP16: 0
A17: CERDO | B17: Reproductoras en reposo | C17: =E.Datos!E51 -> 0 | D17: 14.97 | E17: 0 | F17: ='F.Dist.'!D17 -> 0.7648630595 | G17: 0 | H17: ='F.Dist.'!E17 -> 0 | I17: ='F.Dist.'!F17 -> 0 | J17: ='F.Dist.'!G17 -> 1 | K17: 0 | L17: 0 | M17: =L17*'F.EE.'!F16 -> 0 | N17: 0 | O17: 0 | P17: 0 | Q17: 0 | R17: 0 | S17: =R17*'F.EE.'!I16 -> 0 | T17: 0 | U17: 0 | V17: 0 | W17: ='F.Dist.'!H17 -> 0 | X17: ='F.Dist.'!I17 -> 1 | Y17: 0 | Z17: 0 | AA17: 0 | AB17: 0 | AC17: 0 | AD17: =AA17*'F.EE.'!M16 -> 0 | AE17: =AB17*'F.EE.'!Q16 -> 0 | AF17: ='F.Dist.'!J17 -> 0 | AG17: 0 | AH17: 0 | AI17: 0 | AJ17: 0 | AK17: 0 | AL17: ='F.Dist.'!L17 -> 0 | AM17: ='F.Dist.'!M17 -> 0 | AN17: ='F.Dist.'!N17 -> 0 | AO17: ='F.Dist.'!O17 -> 0 | AP17: ='F.Dist.'!R17 -> 0 | AQ17: ='F.Dist.'!S17 -> 1 | AR17: ='F.Dist.'!U17 -> 0 | AS17: ='F.Dist.'!V17 -> 0 | AT17: ='F.Dist.'!W17 -> 0 | AU17: ='F.Dist.'!Y17 -> 0 | AV17: ='F.Dist.'!Z17 -> 0 | AW17: ='F.Dist.'!AA17 -> 0 | AX17: ='F.Dist.'!AB17 -> 0 | AY17: 0 | AZ17: 0 | BA17: =AZ17*'F.EE.'!T16 -> 0 | BB17: =(AZ17*'F.EE.'!AE16) -> 0 | BC17: =(AZ17*'F.EE.'!AF16) -> 0 | BD17: =(AZ17*'F.EE.'!AG16) -> 0 | BE17: 0 | BF17: 0 | BG17: 0 | BH17: 0 | BI17: 0 | BJ17: 0 | BK17: =BJ17*'F.EE.'!W16 -> 0 | BL17: =BJ17*'F.EE.'!AH16 -> 0 | BM17: =BJ17*'F.EE.'!AI16 -> 0 | BN17: =BJ17*'F.EE.'!AJ16 -> 0 | BO17: 0 | BP17: 0 | BQ17: 0 | BR17: ='F.Dist.'!AD17 -> 0 | BS17: ='F.Dist.'!AE17 -> 1 | BT17: ='F.Dist.'!AF17 -> 0 | BU17: ='F.Dist.'!AG17 -> 1 | BV17: 0 | BW17: 0 | BX17: =BW17*'F.EE.'!Z16 -> 0 | BY17: 0 | BZ17: 0 | CA17: 0 | CB17: 0 | CC17: =CB17*'F.EE.'!AC16 -> 0 | CD17: 0 | CE17: 0 | CF17: 0 | CG17: 0 | CH17: 0 | CI17: 0 | CJ17: 0 | CK17: 0 | CL17: 0 | CM17: 0 | CN17: 0 | CO17: 0 | CP17: 0
A18: TOTALS | C18: =SUM(C4:C17) -> 0 | E18: =SUM(E4:E17) -> 0 | G18: =SUM(G4:G17) -> 0 | K18: =SUM(K4:K17) -> 0 | L18: =SUM(L4:L17) -> 0 | M18: =SUM(M4:M17) -> 0 | N18: =SUM(N4:N17) -> 0 | O18: =SUM(O4:O17) -> 0 | Q18: =SUM(Q4:Q17) -> 0 | R18: =SUM(R4:R17) -> 0 | S18: =SUM(S4:S17) -> 0 | T18: =SUM(T4:T17) -> 0 | U18: =SUM(U4:U17) -> 0 | Y18: =SUM(Y4:Y17) -> 0 | Z18: =SUM(Z4:Z17) -> 0 | AA18: =SUM(AA4:AA17) -> 0 | AB18: =SUM(AB4:AB17) -> 0 | AD18: =SUM(AD4:AD17) -> 0 | AE18: =SUM(AE4:AE17) -> 0 | AG18: =SUM(AG4:AG17) -> 0 | AH18: =SUM(AH4:AH17) -> 0 | AI18: =SUM(AI4:AI17) -> 0 | AJ18: 0 | AY18: =SUM(AY4:AY17) -> 0 | AZ18: =SUM(AZ4:AZ17) -> 0 | BA18: =SUM(BA4:BA17) -> 0 | BB18: =SUM(BB4:BB17) -> 0 | BC18: 0 | BD18: 0 | BE18: =SUM(BE4:BE17) -> 0 | BF18: =SUM(BF4:BF17) -> 0 | BH18: =SUM(BH4:BH17) -> 0 | BI18: =SUM(BI4:BI17) -> 0 | BJ18: 0 | BK18: =SUM(BK4:BK17) -> 0 | BL18: =SUM(BL4:BL17) -> 0 | BM18: 0 | BN18: 0 | BO18: =SUM(BO4:BO17) -> 0 | BP18: =SUM(BP4:BP17) -> 0 | BV18: =SUM(BV4:BV17) -> 0 | BW18: 0 | BX18: 0 | BY18: 0 | BZ18: 0 | CA18: 0 | CB18: 0 | CC18: 0 | CD18: 0 | CE18: 0 | CF18: 0 | CG18: 0 | CH18: =SUM(CH4:CH17) -> 0 | CI18: 0 | CJ18: 0 | CK18: 0 | CL18: 0 | CM18: 0 | CN18: 0 | CO18: =CJ18*17/14 -> 0
A30: SPECIE | B30: CAT_AA | C30: N_AA | D30: N excreted | H30: N Distribution | K30: GRAZING | Q30: YARD_solid+slurry | W30: BUILD | AF30: STRAW_exBUILD_solid (kgN) | AL30: DISTRIBUTION_exBUILD_solid | AP30: DISTRIBUTION_BUILD_slurry | AU30: DISTRIBUCION_YARD_solid+slurry (=YARD) | AY30: STORE_solid (kg N) | BH30: STORE_slurry (kg N) | BR30: DISTRIBUCION_STORE_solid | BT30: DISTRIBUCION_STORE_slurry | BV30: FIELD_solid | CA30: FIELD_slurry | CF30: FIELD TOTAL | CH30: OTHERS | CJ30: EE N-NH3 TOTAL | CK30: EE N-N2O | CL30: EE N-N2 | CM30: EE N-NOx | CN30: EE N-TOTAL | CO30: EE-NH3
D31: Nex_T / AA | E31: Nex_T | F31: x_TAN-T | G31: TAN-T | H31: x_GRAZ | I31: x_YARD | J31: x_BUILD | K31: N_GRAZ | L31: TAN_GRAZ | M31: EE_GRAZ | N31: N_ret_GRAZ | O31: TAN_GRAZING_solid+slurry | P31: CHECK-1 | Q31: N_YARD_solid+slurry | R31: TAN_YARD_solid+slurry | S31: EE_YARD_solid+slurry | T31: N_ret_YARD | U31: TAN_YARD_solid+slurry | V31: CHECK-2 | W31: X_BUILD_solid | X31: X_BUILD_slurry | Y31: N_BUILD_solid | Z31: N_BUILD_slurry | AA31: TAN_BUILD_solid | AB31: TAN_BUILD_slurry | AC31: CHECK-3 | AD31: EE_BUILD_solid | AE31: EE_BUILD_slurry | AF31: N_STRAW | AG31: N_exBUILD_solid | AH31: TAN_exBUILD_solid | AI31: N_ex_BUILD_slurry | AJ31: TAN_ex_BUILD_slurry | AK31: CHECK-4 | AL31: x_exBUILD_solid-to-STORE_solid | AM31: x_exBUILD_solid-to-STORE_slurry | AN31: x_exBUILD_solid-to-FIELD_solid | AO31: x_exBUILD_solid-to-OTHER | AP31: x_BUILD_slurry-to-STORE_solid | AQ31: x_BUILD_slurry-to-STORE_slurry | AR31: x_BUILD_slurry-to-FIELD_solid | AS31: x_BUILD_slurry-to-FIELD_slurry | AT31: x_BUILD_slurry-to-OTHERS | AU31: x_YARD-to-STORE_solid | AV31: x_YARD-to-STORE_slurry | AW31: x_YARD-to-FIELD_solid | AX31: x_YARD-to-OTHERS | AY31: N_STORE_solid | AZ31: TAN_STORE_solid | BA31: EE_NH3_STORE_solid | BB31: EE_N2O_STORE_solid | BC31: EE_N2_STORE_solid | BD31: EE_NOx_STORE_solid | BE31: N_ex_STORE_solid | BF31: TAN_ex_STORE_solid | BG31: CHECK-5 | BH31: N_STORE_slurry | BI31: TAN_STORE_slurry | BJ31: minTAN_STORE_slurry | BK31: EE_NH3_STORE_slurry | BL31: EE_N2O_STORE_slurry | BM31: EE_N2_STORE_slurry | BN31: EE_NOx_STORE_slurry | BO31: N_ex_STORE_slurry | BP31: TAN_ex_STORE_slurry | BQ31: CHECK-6 | BR31: x_STORE_solid-to-FIELD_solid | BS31: x_STORE_slurry-to-OTHERS | BT31: x_STORE_slurry-to-FIELD_slurry | BU31: x_STORE_slurry-to-OTHERS | BV31: N_FIELD_solid | BW31: TAN_FIELD_solid | BX31: EE_FIELD_solid | BY31: N_ex_FIELD_solid | BZ31: TAN_ex_FIELD_solid | CA31: N_FIELD_slurry | CB31: TAN_FIELD_slurry | CC31: EE_FIELD_slurry | CD31: N_ex_SFIELD_slurry | CE31: TAN_ex_FIELD_slurry | CF31: N_ex_SFIELD_total | CG31: TAN_ex_FIELD_total | CH31: N_OTHERS_solid | CI31: TAN_total | CJ31: (PM=17) | CK31: (PM=44) | CL31: (PM=28) | CM31: (PM=46) | CN31: kg N | CO31: kg NH3 | CP31: CHECK
C32: nº animals | D32: kg N/AA | E32: kg N | F32: kg N-TAN/AA | G32: kg N-TAN | K32: Kg N | L32: Kg N-NH3 | M32: kg N-NH3 | N32: Kg N | O32: kg N-NH3 | Q32: Kg N | R32: Kg N-NH3 | S32: kg N-NH3 | T32: Kg N | U32: kg N-NH3 | Y32: Kg N | Z32: Kg N | AA32: kg N-NH3 | AB32: kg N-NH3 | AD32: kg N-NH3 | AE32: kg N-NH3 | AF32: kg N / AA | AG32: N_ret_BUILD_solid | AH32: TAN_ret_BUILD_solid | AI32: N_ret_BUILD_slurry | AJ32: TAN_ret_BUILD_slurry | BA32: kg N-NH3 | BB32: kg N2O | BC32: kg N2 | BD32: kg NOx | BE32: N_ret_STORE_solid | BF32: TAN_ret_STORE_solid | BK32: kg N-NH3 | BL32: kg N2O | BM32: kg N2 | BN32: kg NOx | BO32: N_ret_STORE_slurry | BP32: TAN_ret_STORE_slurry | BV32: kg N | BW32: kg | BX32: kg N-NH3 | BY32: N_ret_FIELD_solid | BZ32: TAN_ret_FIELD_solid | CA32: kg N | CB32: kg | CC32: kg N-NH3 | CD32: N_ret_FIELD_slurry | CE32: TAN_ret_FIELD_slurry | CF32: N_ret_FIELD_total | CG32: TAN_ret_FIELD_total | CH32: kg N | CI32: kg | CJ32: kg N | CK32: kg N | CL32: kg N | CM32: kg N
A33: CERDO | B33: Lechones destetados | C33: =E.Datos!E25 -> 0 | D33: 3.45 | E33: =C33*D33 -> 0 | F33: ='F.Dist.'!D4 -> 0.7362318841 | G33: =E33*F33 -> 0 | H33: ='F.Dist.'!E4 -> 0 | I33: ='F.Dist.'!F4 -> 0 | J33: ='F.Dist.'!G4 -> 1 | K33: =E33*H33 -> 0 | L33: =G33*H33 -> 0 | M33: =L33*'F.EE.'!D3 -> 0 | N33: =K33-M33 -> 0 | O33: =L33-M33 -> 0 | P33: =(H33*G33)-(M33+O33) -> 0 | Q33: =E33*I33 -> 0 | R33: =G33*I33 -> 0 | S33: =R33*'F.EE.'!G3 -> 0 | T33: =Q33-S33 -> 0 | U33: =R33-S33 -> 0 | V33: =T33+S33+N33+M33-(E33*H33+E33*I33) -> 0 | W33: ='F.Dist.'!H4 -> 0 | X33: ='F.Dist.'!I4 -> 1 | Y33: =E33*J33*W33 -> 0 | Z33: =E33*J33*X33 -> 0 | AA33: =G33*J33*W33 -> 0 | AB33: =G33*J33*X33 -> 0 | AC33: =(AA33+AB33)-G33*J33 -> 0 | AD33: =AA33*'F.EE.'!J3 -> 0 | AE33: =AB33*'F.EE.'!N3 -> 0 | AF33: ='F.Dist.'!J4 -> 0 | AG33: =(C33*AF33*J33*W33)+Y33-AD33 -> 0 | AH33: =(AA33-AD33)*(1-0.0067) -> 0 | AI33: =Z33-AE33 -> 0 | AJ33: =AB33-AE33 -> 0 | AK33: =(AG33+AI33+T33+N33)+(M33+S33+AD33+AE33)-(E33+AF33*C33*J33*W33) -> 0 | AL33: ='F.Dist.'!L4 -> 0 | AM33: ='F.Dist.'!M4 -> 0 | AN33: ='F.Dist.'!N4 -> 0 | AO33: ='F.Dist.'!O4 -> 0 | AP33: ='F.Dist.'!R4 -> 0 | AQ33: ='F.Dist.'!S4 -> 1 | AR33: ='F.Dist.'!U4 -> 0 | AS33: ='F.Dist.'!V4 -> 0 | AT33: ='F.Dist.'!W4 -> 0 | AU33: ='F.Dist.'!Y4 -> 0 | AV33: ='F.Dist.'!Z4 -> 0 | AW33: ='F.Dist.'!AA4 -> 0 | AX33: ='F.Dist.'!AB4 -> 0 | AY33: =AG33*AL33+T33*AU33+AI33*AP33 -> 0 | AZ33: =AH33*AL33+AJ33*AP33+U33*AU33 -> 0 | BA33: =AZ33*'F.EE.'!R3 -> 0 | BB33: =(AZ33*'F.EE.'!AE3) -> 0 | BC33: =(AZ33*'F.EE.'!AF3) -> 0 | BD33: =(AZ33*'F.EE.'!AG3) -> 0 | BE33: =AY33-BA33-BB33*(28/44)-BC33-BD33*(14/46) -> 0 | BF33: =AZ33-BA33-BB33*(28/44)-BC33-BD33*(14/46) -> 0 | BG33: =(BE33+BA33+BC33+BB33*28/44+BD33*14/46)-AY33 -> 0 | BH33: =AG33*AM33+AI33*AQ33+T33*AV33 -> 0 | BI33: =AH33*AM33+AJ33*AQ33+U33*AV33 -> 0 | BJ33: =BI33+(BH33-BI33)*0.1 -> 0 | BK33: =BJ33*'F.EE.'!U3 -> 0 | BL33: =BJ33*'F.EE.'!AH3 -> 0 | BM33: =BJ33*'F.EE.'!AI3 -> 0 | BN33: =BJ33*'F.EE.'!AJ3 -> 0 | BO33: =BH33-BK33-BL33*(28/44)-BM33-BN33*(14/46) -> 0 | BP33: =BJ33-BK33-BL33*(28/44)-BM33-BN33*(14/46) -> 0 | BQ33: =(BO33+BK33+BM33+BL33*28/44+BN33*14/46)-BH33 -> 0 | BR33: ='F.Dist.'!AD4 -> 0 | BS33: ='F.Dist.'!AE4 -> 1 | BT33: ='F.Dist.'!AF4 -> 0 | BU33: ='F.Dist.'!AG4 -> 1 | BV33: =BE33*BR33+AG33*AN33+AI33*AR33+T33*AW33 -> 0 | BW33: =BF33*BR33+AH33*AN33+AJ33*AR33+U33*AW33 -> 0 | BX33: =BW33*'F.EE.'!X3 -> 0 | BY33: =BV33-BX33 -> 0 | BZ33: =BW33-BX33 -> 0 | CA33: =AI33*AS33+BO33*BT33 -> 0 | CB33: =AJ33*AS33+BP33*BT33 -> 0 | CC33: =CB33*'F.EE.'!AA3 -> 0 | CD33: =CA33-CC33 -> 0 | CE33: =CB33-CC33 -> 0 | CF33: =CD33+BY33+N33 -> 0 | CG33: =CE33+BZ33+O33 -> 0 | CH33: =T33*AX33+BO33*BU33+BE33*BS33+AI33*AT33+AG33*AO33 -> 0 | CI33: =U33*AX33+BP33*BU33+BF33*BS33+AJ33*AT33+AH33*AO33 -> 0 | CJ33: =CC33+BX33+BK33+BA33+AE33+AD33+S33+M33 -> 0 | CK33: =(BL33+BB33)*28/44 -> 0 | CL33: =(BM33+BC33) -> 0 | CM33: =(BN33+BD33)*14/46 -> 0 | CN33: =SUM(CJ33:CM33) -> 0 | CO33: =CJ33*17/14 -> 0 | CP33: =(E33+(AF33*C33*J33*W33)-(CH33+CN33+CF33)) -> 0
A34: CERDO | B34: Cerdo 20-49 kg | C34: =E.Datos!E27 -> 0 | D34: 8.81 | E34: =C34*D34 -> 0 | F34: ='F.Dist.'!D5 -> 0.7207718502 | G34: =E34*F34 -> 0 | H34: ='F.Dist.'!E5 -> 0 | I34: ='F.Dist.'!F5 -> 0 | J34: ='F.Dist.'!G5 -> 1 | K34: =E34*H34 -> 0 | L34: =G34*H34 -> 0 | M34: =L34*'F.EE.'!D4 -> 0 | N34: =K34-M34 -> 0 | O34: =L34-M34 -> 0 | P34: =(H34*G34)-(M34+O34) -> 0 | Q34: =E34*I34 -> 0 | R34: =G34*I34 -> 0 | S34: =R34*'F.EE.'!G4 -> 0 | T34: =Q34-S34 -> 0 | U34: =R34-S34 -> 0 | V34: =T34+S34+N34+M34-(E34*H34+E34*I34) -> 0 | W34: ='F.Dist.'!H5 -> 0 | X34: ='F.Dist.'!I5 -> 1 | Y34: =E34*J34*W34 -> 0 | Z34: =E34*J34*X34 -> 0 | AA34: =G34*J34*W34 -> 0 | AB34: =G34*J34*X34 -> 0 | AC34: =(AA34+AB34)-G34*J34 -> 0 | AD34: =AA34*'F.EE.'!J4 -> 0 | AE34: =AB34*'F.EE.'!N4 -> 0 | AF34: ='F.Dist.'!J5 -> 0 | AG34: =(C34*AF34*J34*W34)+Y34-AD34 -> 0 | AH34: =(AA34-AD34)*(1-0.0067) -> 0 | AI34: =Z34-AE34 -> 0 | AJ34: =AB34-AE34 -> 0 | AK34: =(AG34+AI34+T34+N34)+(M34+S34+AD34+AE34)-(E34+AF34*C34*J34*W34) -> 0 | AL34: ='F.Dist.'!L5 -> 0 | AM34: ='F.Dist.'!M5 -> 0 | AN34: ='F.Dist.'!N5 -> 0 | AO34: ='F.Dist.'!O5 -> 0 | AP34: ='F.Dist.'!R5 -> 0 | AQ34: ='F.Dist.'!S5 -> 1 | AR34: ='F.Dist.'!U5 -> 0 | AS34: ='F.Dist.'!V5 -> 0 | AT34: ='F.Dist.'!W5 -> 0 | AU34: ='F.Dist.'!Y5 -> 0 | AV34: ='F.Dist.'!Z5 -> 0 | AW34: ='F.Dist.'!AA5 -> 0 | AX34: ='F.Dist.'!AB5 -> 0 | AY34: =AG34*AL34+T34*AU34+AI34*AP34 -> 0 | AZ34: =AH34*AL34+AJ34*AP34+U34*AU34 -> 0 | BA34: =AZ34*'F.EE.'!R4 -> 0 | BB34: =(AZ34*'F.EE.'!AE4) -> 0 | BC34: =(AZ34*'F.EE.'!AF4) -> 0 | BD34: =(AZ34*'F.EE.'!AG4) -> 0 | BE34: 0 | BF34: 0 | BG34: 0 | BH34: =AG34*AM34+AI34*AQ34+T34*AV34 -> 0 | BI34: =AH34*AM34+AJ34*AQ34+U34*AV34 -> 0 | BJ34: =BI34+(BH34-BI34)*0.1 -> 0 | BK34: =BJ34*'F.EE.'!U4 -> 0 | BL34: =BJ34*'F.EE.'!AH4 -> 0 | BM34: =BJ34*'F.EE.'!AI4 -> 0 | BN34: =BJ34*'F.EE.'!AJ4 -> 0 | BO34: 0 | BP34: 0 | BQ34: 0 | BR34: ='F.Dist.'!AD5 -> 0 | BS34: ='F.Dist.'!AE5 -> 1 | BT34: ='F.Dist.'!AF5 -> 0 | BU34: ='F.Dist.'!AG5 -> 1 | BV34: =BE34*BR34+AG34*AN34+AI34*AR34+T34*AW34 -> 0 | BW34: =BF34*BR34+AH34*AN34+AJ34*AR34+U34*AW34 -> 0 | BX34: =BW34*'F.EE.'!X4 -> 0 | BY34: =BV34-BX34 -> 0 | BZ34: =BW34-BX34 -> 0 | CA34: =AI34*AS34+BO34*BT34 -> 0 | CB34: =AJ34*AS34+BP34*BT34 -> 0 | CC34: =CB34*'F.EE.'!AA4 -> 0 | CD34: =CA34-CC34 -> 0 | CE34: =CB34-CC34 -> 0 | CF34: =CD34+BY34+N34 -> 0 | CG34: =CE34+BZ34+O34 -> 0 | CH34: =T34*AX34+BO34*BU34+BE34*BS34+AI34*AT34+AG34*AO34 -> 0 | CI34: =U34*AX34+BP34*BU34+BF34*BS34+AJ34*AT34+AH34*AO34 -> 0 | CJ34: =CC34+BX34+BK34+BA34+AE34+AD34+S34+M34 -> 0 | CK34: =(BL34+BB34)*28/44 -> 0 | CL34: =(BM34+BC34) -> 0 | CM34: 0 | CN34: =SUM(CJ34:CM34) -> 0 | CO34: =CJ34*17/14 -> 0 | CP34: =(E34+(AF34*C34*J34*W34)-(CH34+CN34+CF34)) -> 0
A35: CERDO | B35: Cerdo 50-79 kg | C35: =E.Datos!E29 -> 0 | D35: 10.72 | E35: =C35*D35 -> 0 | F35: ='F.Dist.'!D6 -> 0.7210820896 | G35: =E35*F35 -> 0 | H35: ='F.Dist.'!E6 -> 0 | I35: ='F.Dist.'!F6 -> 0 | J35: ='F.Dist.'!G6 -> 1 | K35: =E35*H35 -> 0 | L35: =G35*H35 -> 0 | M35: =L35*'F.EE.'!D5 -> 0 | N35: =K35-M35 -> 0 | O35: =L35-M35 -> 0 | P35: =(H35*G35)-(M35+O35) -> 0 | Q35: =E35*I35 -> 0 | R35: =G35*I35 -> 0 | S35: =R35*'F.EE.'!G5 -> 0 | T35: =Q35-S35 -> 0 | U35: =R35-S35 -> 0 | V35: =T35+S35+N35+M35-(E35*H35+E35*I35) -> 0 | W35: ='F.Dist.'!H6 -> 0 | X35: ='F.Dist.'!I6 -> 1 | Y35: =E35*J35*W35 -> 0 | Z35: =E35*J35*X35 -> 0 | AA35: =G35*J35*W35 -> 0 | AB35: =G35*J35*X35 -> 0 | AC35: =(AA35+AB35)-G35*J35 -> 0 | AD35: =AA35*'F.EE.'!J5 -> 0 | AE35: =AB35*'F.EE.'!N5 -> 0 | AF35: ='F.Dist.'!J6 -> 0 | AG35: =(C35*AF35*J35*W35)+Y35-AD35 -> 0 | AH35: =(AA35-AD35)*(1-0.0067) -> 0 | AI35: =Z35-AE35 -> 0 | AJ35: =AB35-AE35 -> 0 | AK35: =(AG35+AI35+T35+N35)+(M35+S35+AD35+AE35)-(E35+AF35*C35*J35*W35) -> 0 | AL35: ='F.Dist.'!L6 -> 0 | AM35: ='F.Dist.'!M6 -> 0 | AN35: ='F.Dist.'!N6 -> 0 | AO35: ='F.Dist.'!O6 -> 0 | AP35: ='F.Dist.'!R6 -> 0 | AQ35: ='F.Dist.'!S6 -> 1 | AR35: ='F.Dist.'!U6 -> 0 | AS35: ='F.Dist.'!V6 -> 0 | AT35: ='F.Dist.'!W6 -> 0 | AU35: ='F.Dist.'!Y6 -> 0 | AV35: ='F.Dist.'!Z6 -> 0 | AW35: ='F.Dist.'!AA6 -> 0 | AX35: ='F.Dist.'!AB6 -> 0 | AY35: =AG35*AL35+T35*AU35+AI35*AP35 -> 0 | AZ35: =AH35*AL35+AJ35*AP35+U35*AU35 -> 0 | BA35: =AZ35*'F.EE.'!R5 -> 0 | BB35: =(AZ35*'F.EE.'!AE5) -> 0 | BC35: =(AZ35*'F.EE.'!AF5) -> 0 | BD35: =(AZ35*'F.EE.'!AG5) -> 0 | BE35: 0 | BF35: 0 | BG35: 0 | BH35: =AG35*AM35+AI35*AQ35+T35*AV35 -> 0 | BI35: =AH35*AM35+AJ35*AQ35+U35*AV35 -> 0 | BJ35: =BI35+(BH35-BI35)*0.1 -> 0 | BK35: =BJ35*'F.EE.'!U5 -> 0 | BL35: =BJ35*'F.EE.'!AH5 -> 0 | BM35: =BJ35*'F.EE.'!AI5 -> 0 | BN35: =BJ35*'F.EE.'!AJ5 -> 0 | BO35: 0 | BP35: 0 | BQ35: 0 | BR35: ='F.Dist.'!AD6 -> 0 | BS35: ='F.Dist.'!AE6 -> 1 | BT35: ='F.Dist.'!AF6 -> 0 | BU35: ='F.Dist.'!AG6 -> 1 | BV35: =BE35*BR35+AG35*AN35+AI35*AR35+T35*AW35 -> 0 | BW35: =BF35*BR35+AH35*AN35+AJ35*AR35+U35*AW35 -> 0 | BX35: =BW35*'F.EE.'!X5 -> 0 | BY35: =BV35-BX35 -> 0 | BZ35: =BW35-BX35 -> 0 | CA35: =AI35*AS35+BO35*BT35 -> 0 | CB35: =AJ35*AS35+BP35*BT35 -> 0 | CC35: =CB35*'F.EE.'!AA5 -> 0 | CD35: =CA35-CC35 -> 0 | CE35: =CB35-CC35 -> 0 | CF35: =CD35+BY35+N35 -> 0 | CG35: =CE35+BZ35+O35 -> 0 | CH35: =T35*AX35+BO35*BU35+BE35*BS35+AI35*AT35+AG35*AO35 -> 0 | CI35: =U35*AX35+BP35*BU35+BF35*BS35+AJ35*AT35+AH35*AO35 -> 0 | CJ35: =CC35+BX35+BK35+BA35+AE35+AD35+S35+M35 -> 0 | CK35: =(BL35+BB35)*28/44 -> 0 | CL35: =(BM35+BC35) -> 0 | CM35: 0 | CN35: =SUM(CJ35:CM35) -> 0 | CO35: =CJ35*17/14 -> 0 | CP35: =(E35+(AF35*C35*J35*W35)-(CH35+CN35+CF35)) -> 0
A36: CERDO | B36: Cerdo 80-109 kg | C36: =E.Datos!E31 -> 0 | D36: 11.68 | E36: 0 | F36: ='F.Dist.'!D7 -> 0.7200342466 | G36: 0 | H36: ='F.Dist.'!E7 -> 0 | I36: ='F.Dist.'!F7 -> 0 | J36: ='F.Dist.'!G7 -> 1 | K36: 0 | L36: 0 | M36: =L36*'F.EE.'!D6 -> 0 | N36: 0 | O36: 0 | P36: =(H36*G36)-(M36+O36) -> 0 | Q36: 0 | R36: 0 | S36: =R36*'F.EE.'!G6 -> 0 | T36: 0 | U36: 0 | V36: =T36+S36+N36+M36-(E36*H36+E36*I36) -> 0 | W36: ='F.Dist.'!H7 -> 0 | X36: ='F.Dist.'!I7 -> 1 | Y36: 0 | Z36: 0 | AA36: 0 | AB36: 0 | AC36: 0 | AD36: =AA36*'F.EE.'!J6 -> 0 | AE36: =AB36*'F.EE.'!N6 -> 0 | AF36: ='F.Dist.'!J7 -> 0 | AG36: 0 | AH36: 0 | AI36: 0 | AJ36: 0 | AK36: 0 | AL36: ='F.Dist.'!L7 -> 0 | AM36: ='F.Dist.'!M7 -> 0 | AN36: ='F.Dist.'!N7 -> 0 | AO36: ='F.Dist.'!O7 -> 0 | AP36: ='F.Dist.'!R7 -> 0 | AQ36: ='F.Dist.'!S7 -> 1 | AR36: ='F.Dist.'!U7 -> 0 | AS36: ='F.Dist.'!V7 -> 0 | AT36: ='F.Dist.'!W7 -> 0 | AU36: ='F.Dist.'!Y7 -> 0 | AV36: ='F.Dist.'!Z7 -> 0 | AW36: ='F.Dist.'!AA7 -> 0 | AX36: ='F.Dist.'!AB7 -> 0 | AY36: 0 | AZ36: 0 | BA36: =AZ36*'F.EE.'!R6 -> 0 | BB36: =(AZ36*'F.EE.'!AE6) -> 0 | BC36: =(AZ36*'F.EE.'!AF6) -> 0 | BD36: =(AZ36*'F.EE.'!AG6) -> 0 | BE36: 0 | BF36: 0 | BG36: 0 | BH36: 0 | BI36: 0 | BJ36: 0 | BK36: =BJ36*'F.EE.'!U6 -> 0 | BL36: =BJ36*'F.EE.'!AH6 -> 0 | BM36: =BJ36*'F.EE.'!AI6 -> 0 | BN36: =BJ36*'F.EE.'!AJ6 -> 0 | BO36: 0 | BP36: 0 | BQ36: 0 | BR36: ='F.Dist.'!AD7 -> 0 | BS36: ='F.Dist.'!AE7 -> 1 | BT36: ='F.Dist.'!AF7 -> 0 | BU36: ='F.Dist.'!AG7 -> 1 | BV36: =BE36*BR36+AG36*AN36+AI36*AR36+T36*AW36 -> 0 | BW36: 0 | BX36: =BW36*'F.EE.'!X6 -> 0 | BY36: =BV36-BX36 -> 0 | BZ36: 0 | CA36: 0 | CB36: 0 | CC36: =CB36*'F.EE.'!AA6 -> 0 | CD36: 0 | CE36: 0 | CF36: =CD36+BY36+N36 -> 0 | CG36: 0 | CH36: 0 | CI36: 0 | CJ36: 0 | CK36: 0 | CL36: 0 | CM36: 0 | CN36: 0 | CO36: 0 | CP36: 0
A37: CERDO | B37: Cerdo > 110 kg | C37: =E.Datos!E33 -> 0 | D37: 12.06 | E37: 0 | F37: ='F.Dist.'!D8 -> 0.7023217247 | G37: 0 | H37: ='F.Dist.'!E8 -> 0 | I37: ='F.Dist.'!F8 -> 0 | J37: ='F.Dist.'!G8 -> 1 | K37: 0 | L37: 0 | M37: =L37*'F.EE.'!D7 -> 0 | N37: 0 | O37: 0 | P37: =(H37*G37)-(M37+O37) -> 0 | Q37: 0 | R37: 0 | S37: =R37*'F.EE.'!G7 -> 0 | T37: 0 | U37: 0 | V37: =T37+S37+N37+M37-(E37*H37+E37*I37) -> 0 | W37: ='F.Dist.'!H8 -> 0 | X37: ='F.Dist.'!I8 -> 1 | Y37: =E37*J37*W37 -> 0 | Z37: 0 | AA37: 0 | AB37: 0 | AC37: =(AA37+AB37)-G37*J37 -> 0 | AD37: =AA37*'F.EE.'!J7 -> 0 | AE37: =AB37*'F.EE.'!N7 -> 0 | AF37: ='F.Dist.'!J8 -> 0 | AG37: 0 | AH37: 0 | AI37: 0 | AJ37: 0 | AK37: 0 | AL37: ='F.Dist.'!L8 -> 0 | AM37: ='F.Dist.'!M8 -> 0 | AN37: ='F.Dist.'!N8 -> 0 | AO37: ='F.Dist.'!O8 -> 0 | AP37: ='F.Dist.'!R8 -> 0 | AQ37: ='F.Dist.'!S8 -> 1 | AR37: ='F.Dist.'!U8 -> 0 | AS37: ='F.Dist.'!V8 -> 0 | AT37: ='F.Dist.'!W8 -> 0 | AU37: ='F.Dist.'!Y8 -> 0 | AV37: ='F.Dist.'!Z8 -> 0 | AW37: ='F.Dist.'!AA8 -> 0 | AX37: ='F.Dist.'!AB8 -> 0 | AY37: 0 | AZ37: 0 | BA37: =AZ37*'F.EE.'!R7 -> 0 | BB37: =(AZ37*'F.EE.'!AE7) -> 0 | BC37: =(AZ37*'F.EE.'!AF7) -> 0 | BD37: =(AZ37*'F.EE.'!AG7) -> 0 | BE37: 0 | BF37: 0 | BG37: 0 | BH37: 0 | BI37: 0 | BJ37: 0 | BK37: =BJ37*'F.EE.'!U7 -> 0 | BL37: =BJ37*'F.EE.'!AH7 -> 0 | BM37: =BJ37*'F.EE.'!AI7 -> 0 | BN37: =BJ37*'F.EE.'!AJ7 -> 0 | BO37: 0 | BP37: 0 | BQ37: 0 | BR37: ='F.Dist.'!AD8 -> 0 | BS37: ='F.Dist.'!AE8 -> 1 | BT37: ='F.Dist.'!AF8 -> 0 | BU37: ='F.Dist.'!AG8 -> 1 | BV37: =BE37*BR37+AG37*AN37+AI37*AR37+T37*AW37 -> 0 | BW37: 0 | BX37: =BW37*'F.EE.'!X7 -> 0 | BY37: 0 | BZ37: 0 | CA37: 0 | CB37: 0 | CC37: =CB37*'F.EE.'!AA7 -> 0 | CD37: 0 | CE37: 0 | CF37: 0 | CG37: 0 | CH37: 0 | CI37: 0 | CJ37: 0 | CK37: 0 | CL37: 0 | CM37: 0 | CN37: 0 | CO37: 0 | CP37: 0
A38: CERDO | B38: Verracos jóvenes | C38: =E.Datos!E35 -> 0 | D38: 16.22 | E38: 0 | F38: ='F.Dist.'!D9 -> 0.7663378545 | G38: 0 | H38: ='F.Dist.'!E9 -> 0 | I38: ='F.Dist.'!F9 -> 0 | J38: ='F.Dist.'!G9 -> 1 | K38: 0 | L38: 0 | M38: =L38*'F.EE.'!D8 -> 0 | N38: 0 | O38: 0 | P38: 0 | Q38: 0 | R38: 0 | S38: =R38*'F.EE.'!G8 -> 0 | T38: 0 | U38: 0 | V38: 0 | W38: ='F.Dist.'!H9 -> 0 | X38: ='F.Dist.'!I9 -> 1 | Y38: =E38*J38*W38 -> 0 | Z38: 0 | AA38: 0 | AB38: 0 | AC38: =(AA38+AB38)-G38*J38 -> 0 | AD38: =AA38*'F.EE.'!J8 -> 0 | AE38: =AB38*'F.EE.'!N8 -> 0 | AF38: ='F.Dist.'!J9 -> 0 | AG38: 0 | AH38: 0 | AI38: 0 | AJ38: 0 | AK38: 0 | AL38: ='F.Dist.'!L9 -> 0 | AM38: ='F.Dist.'!M9 -> 0 | AN38: ='F.Dist.'!N9 -> 0 | AO38: ='F.Dist.'!O9 -> 0 | AP38: ='F.Dist.'!R9 -> 0 | AQ38: ='F.Dist.'!S9 -> 1 | AR38: ='F.Dist.'!U9 -> 0 | AS38: ='F.Dist.'!V9 -> 0 | AT38: ='F.Dist.'!W9 -> 0 | AU38: ='F.Dist.'!Y9 -> 0 | AV38: ='F.Dist.'!Z9 -> 0 | AW38: ='F.Dist.'!AA9 -> 0 | AX38: ='F.Dist.'!AB9 -> 0 | AY38: 0 | AZ38: 0 | BA38: =AZ38*'F.EE.'!R8 -> 0 | BB38: =(AZ38*'F.EE.'!AE8) -> 0 | BC38: =(AZ38*'F.EE.'!AF8) -> 0 | BD38: =(AZ38*'F.EE.'!AG8) -> 0 | BE38: 0 | BF38: 0 | BG38: 0 | BH38: 0 | BI38: 0 | BJ38: 0 | BK38: =BJ38*'F.EE.'!U8 -> 0 | BL38: =BJ38*'F.EE.'!AH8 -> 0 | BM38: =BJ38*'F.EE.'!AI8 -> 0 | BN38: =BJ38*'F.EE.'!AJ8 -> 0 | BO38: 0 | BP38: 0 | BQ38: 0 | BR38: ='F.Dist.'!AD9 -> 0 | BS38: ='F.Dist.'!AE9 -> 1 | BT38: ='F.Dist.'!AF9 -> 0 | BU38: ='F.Dist.'!AG9 -> 1 | BV38: 0 | BW38: 0 | BX38: =BW38*'F.EE.'!X8 -> 0 | BY38: 0 | BZ38: 0 | CA38: 0 | CB38: 0 | CC38: =CB38*'F.EE.'!AA8 -> 0 | CD38: 0 | CE38: 0 | CF38: 0 | CG38: 0 | CH38: 0 | CI38: 0 | CJ38: 0 | CK38: 0 | CL38: 0 | CM38: 0 | CN38: 0 | CO38: 0 | CP38: 0
A39: CERDO | B39: Verracos adultos | C39: =E.Datos!E37 -> 0 | D39: 18.75 | E39: 0 | F39: ='F.Dist.'!D10 -> 0.7488 | G39: 0 | H39: ='F.Dist.'!E10 -> 0 | I39: ='F.Dist.'!F10 -> 0 | J39: ='F.Dist.'!G10 -> 1 | K39: 0 | L39: 0 | M39: =L39*'F.EE.'!D9 -> 0 | N39: 0 | O39: 0 | P39: 0 | Q39: 0 | R39: 0 | S39: =R39*'F.EE.'!G9 -> 0 | T39: 0 | U39: 0 | V39: 0 | W39: ='F.Dist.'!H10 -> 0 | X39: ='F.Dist.'!I10 -> 1 | Y39: 0 | Z39: 0 | AA39: 0 | AB39: 0 | AC39: 0 | AD39: =AA39*'F.EE.'!J9 -> 0 | AE39: =AB39*'F.EE.'!N9 -> 0 | AF39: ='F.Dist.'!J10 -> 0 | AG39: 0 | AH39: 0 | AI39: 0 | AJ39: 0 | AK39: 0 | AL39: ='F.Dist.'!L10 -> 0 | AM39: ='F.Dist.'!M10 -> 0 | AN39: ='F.Dist.'!N10 -> 0 | AO39: ='F.Dist.'!O10 -> 0 | AP39: ='F.Dist.'!R10 -> 0 | AQ39: ='F.Dist.'!S10 -> 1 | AR39: ='F.Dist.'!U10 -> 0 | AS39: ='F.Dist.'!V10 -> 0 | AT39: ='F.Dist.'!W10 -> 0 | AU39: ='F.Dist.'!Y10 -> 0 | AV39: ='F.Dist.'!Z10 -> 0 | AW39: ='F.Dist.'!AA10 -> 0 | AX39: ='F.Dist.'!AB10 -> 0 | AY39: 0 | AZ39: 0 | BA39: =AZ39*'F.EE.'!R9 -> 0 | BB39: =(AZ39*'F.EE.'!AE9) -> 0 | BC39: =(AZ39*'F.EE.'!AF9) -> 0 | BD39: =(AZ39*'F.EE.'!AG9) -> 0 | BE39: 0 | BF39: 0 | BG39: 0 | BH39: 0 | BI39: 0 | BJ39: 0 | BK39: =BJ39*'F.EE.'!U9 -> 0 | BL39: =BJ39*'F.EE.'!AH9 -> 0 | BM39: =BJ39*'F.EE.'!AI9 -> 0 | BN39: =BJ39*'F.EE.'!AJ9 -> 0 | BO39: 0 | BP39: 0 | BQ39: 0 | BR39: ='F.Dist.'!AD10 -> 0 | BS39: ='F.Dist.'!AE10 -> 1 | BT39: ='F.Dist.'!AF10 -> 0 | BU39: ='F.Dist.'!AG10 -> 1 | BV39: 0 | BW39: 0 | BX39: =BW39*'F.EE.'!X9 -> 0 | BY39: 0 | BZ39: 0 | CA39: 0 | CB39: 0 | CC39: =CB39*'F.EE.'!AA9 -> 0 | CD39: 0 | CE39: 0 | CF39: 0 | CG39: 0 | CH39: 0 | CI39: 0 | CJ39: 0 | CK39: 0 | CL39: 0 | CM39: 0 | CN39: 0 | CO39: 0 | CP39: 0
A40: CERDO | B40: Reproductora no cubierta | C40: =E.Datos!E39 -> 0 | D40: 13.2 | E40: 0 | F40: ='F.Dist.'!D11 -> 0.678030303 | G40: 0 | H40: ='F.Dist.'!E11 -> 0 | I40: ='F.Dist.'!F11 -> 0 | J40: ='F.Dist.'!G11 -> 1 | K40: 0 | L40: 0 | M40: =L40*'F.EE.'!D10 -> 0 | N40: 0 | O40: 0 | P40: 0 | Q40: 0 | R40: 0 | S40: =R40*'F.EE.'!G10 -> 0 | T40: 0 | U40: 0 | V40: 0 | W40: ='F.Dist.'!H11 -> 0 | X40: ='F.Dist.'!I11 -> 1 | Y40: 0 | Z40: 0 | AA40: 0 | AB40: 0 | AC40: 0 | AD40: =AA40*'F.EE.'!J10 -> 0 | AE40: =AB40*'F.EE.'!N10 -> 0 | AF40: ='F.Dist.'!J11 -> 0 | AG40: 0 | AH40: 0 | AI40: 0 | AJ40: 0 | AK40: 0 | AL40: ='F.Dist.'!L11 -> 0 | AM40: ='F.Dist.'!M11 -> 0 | AN40: ='F.Dist.'!N11 -> 0 | AO40: ='F.Dist.'!O11 -> 0 | AP40: ='F.Dist.'!R11 -> 0 | AQ40: ='F.Dist.'!S11 -> 1 | AR40: ='F.Dist.'!U11 -> 0 | AS40: ='F.Dist.'!V11 -> 0 | AT40: ='F.Dist.'!W11 -> 0 | AU40: ='F.Dist.'!Y11 -> 0 | AV40: ='F.Dist.'!Z11 -> 0 | AW40: ='F.Dist.'!AA11 -> 0 | AX40: ='F.Dist.'!AB11 -> 0 | AY40: 0 | AZ40: 0 | BA40: =AZ40*'F.EE.'!R10 -> 0 | BB40: =(AZ40*'F.EE.'!AE10) -> 0 | BC40: =(AZ40*'F.EE.'!AF10) -> 0 | BD40: =(AZ40*'F.EE.'!AG10) -> 0 | BE40: 0 | BF40: 0 | BG40: 0 | BH40: 0 | BI40: 0 | BJ40: 0 | BK40: =BJ40*'F.EE.'!U10 -> 0 | BL40: =BJ40*'F.EE.'!AH10 -> 0 | BM40: =BJ40*'F.EE.'!AI10 -> 0 | BN40: =BJ40*'F.EE.'!AJ10 -> 0 | BO40: 0 | BP40: 0 | BQ40: 0 | BR40: ='F.Dist.'!AD11 -> 0 | BS40: ='F.Dist.'!AE11 -> 1 | BT40: ='F.Dist.'!AF11 -> 0 | BU40: ='F.Dist.'!AG11 -> 1 | BV40: 0 | BW40: 0 | BX40: =BW40*'F.EE.'!X10 -> 0 | BY40: 0 | BZ40: 0 | CA40: 0 | CB40: 0 | CC40: =CB40*'F.EE.'!AA10 -> 0 | CD40: 0 | CE40: 0 | CF40: 0 | CG40: 0 | CH40: 0 | CI40: 0 | CJ40: 0 | CK40: 0 | CL40: 0 | CM40: 0 | CN40: 0 | CO40: 0 | CP40: 0
A41: CERDO | B41: Reproductora en 1ª gestación | C41: =E.Datos!E41 -> 0 | D41: 14 | E41: 0 | F41: ='F.Dist.'!D12 -> 0.7157142857 | G41: 0 | H41: ='F.Dist.'!E12 -> 0 | I41: ='F.Dist.'!F12 -> 0 | J41: ='F.Dist.'!G12 -> 1 | K41: 0 | L41: 0 | M41: =L41*'F.EE.'!D11 -> 0 | N41: 0 | O41: 0 | P41: 0 | Q41: 0 | R41: 0 | S41: =R41*'F.EE.'!G11 -> 0 | T41: 0 | U41: 0 | V41: 0 | W41: ='F.Dist.'!H12 -> 0 | X41: ='F.Dist.'!I12 -> 1 | Y41: 0 | Z41: 0 | AA41: 0 | AB41: 0 | AC41: 0 | AD41: =AA41*'F.EE.'!J11 -> 0 | AE41: =AB41*'F.EE.'!N11 -> 0 | AF41: ='F.Dist.'!J12 -> 0 | AG41: 0 | AH41: 0 | AI41: 0 | AJ41: 0 | AK41: 0 | AL41: ='F.Dist.'!L12 -> 0 | AM41: ='F.Dist.'!M12 -> 0 | AN41: ='F.Dist.'!N12 -> 0 | AO41: ='F.Dist.'!O12 -> 0 | AP41: ='F.Dist.'!R12 -> 0 | AQ41: ='F.Dist.'!S12 -> 1 | AR41: ='F.Dist.'!U12 -> 0 | AS41: ='F.Dist.'!V12 -> 0 | AT41: ='F.Dist.'!W12 -> 0 | AU41: ='F.Dist.'!Y12 -> 0 | AV41: ='F.Dist.'!Z12 -> 0 | AW41: ='F.Dist.'!AA12 -> 0 | AX41: ='F.Dist.'!AB12 -> 0 | AY41: 0 | AZ41: 0 | BA41: =AZ41*'F.EE.'!R11 -> 0 | BB41: =(AZ41*'F.EE.'!AE11) -> 0 | BC41: =(AZ41*'F.EE.'!AF11) -> 0 | BD41: =(AZ41*'F.EE.'!AG11) -> 0 | BE41: 0 | BF41: 0 | BG41: 0 | BH41: 0 | BI41: 0 | BJ41: 0 | BK41: =BJ41*'F.EE.'!U11 -> 0 | BL41: =BJ41*'F.EE.'!AH11 -> 0 | BM41: =BJ41*'F.EE.'!AI11 -> 0 | BN41: =BJ41*'F.EE.'!AJ11 -> 0 | BO41: 0 | BP41: 0 | BQ41: 0 | BR41: ='F.Dist.'!AD12 -> 0 | BS41: ='F.Dist.'!AE12 -> 1 | BT41: ='F.Dist.'!AF12 -> 0 | BU41: ='F.Dist.'!AG12 -> 1 | BV41: 0 | BW41: 0 | BX41: =BW41*'F.EE.'!X11 -> 0 | BY41: 0 | BZ41: 0 | CA41: 0 | CB41: 0 | CC41: =CB41*'F.EE.'!AA11 -> 0 | CD41: 0 | CE41: 0 | CF41: 0 | CG41: 0 | CH41: 0 | CI41: 0 | CJ41: 0 | CK41: 0 | CL41: 0 | CM41: 0 | CN41: 0 | CO41: 0 | CP41: 0
A42: CERDO | B42: Reproductora en gestación | C42: =E.Datos!E43 -> 0 | D42: 15.7 | E42: 0 | F42: ='F.Dist.'!D13 -> 0.7343949045 | G42: 0 | H42: ='F.Dist.'!E13 -> 0 | I42: ='F.Dist.'!F13 -> 0 | J42: ='F.Dist.'!G13 -> 1 | K42: 0 | L42: 0 | M42: =L42*'F.EE.'!D12 -> 0 | N42: 0 | O42: 0 | P42: 0 | Q42: 0 | R42: 0 | S42: =R42*'F.EE.'!G12 -> 0 | T42: 0 | U42: 0 | V42: 0 | W42: ='F.Dist.'!H13 -> 0 | X42: ='F.Dist.'!I13 -> 1 | Y42: 0 | Z42: 0 | AA42: 0 | AB42: 0 | AC42: 0 | AD42: =AA42*'F.EE.'!J12 -> 0 | AE42: =AB42*'F.EE.'!N12 -> 0 | AF42: ='F.Dist.'!J13 -> 0 | AG42: 0 | AH42: 0 | AI42: 0 | AJ42: 0 | AK42: 0 | AL42: ='F.Dist.'!L13 -> 0 | AM42: ='F.Dist.'!M13 -> 0 | AN42: ='F.Dist.'!N13 -> 0 | AO42: ='F.Dist.'!O13 -> 0 | AP42: ='F.Dist.'!R13 -> 0 | AQ42: ='F.Dist.'!S13 -> 1 | AR42: ='F.Dist.'!U13 -> 0 | AS42: ='F.Dist.'!V13 -> 0 | AT42: ='F.Dist.'!W13 -> 0 | AU42: ='F.Dist.'!Y13 -> 0 | AV42: ='F.Dist.'!Z13 -> 0 | AW42: ='F.Dist.'!AA13 -> 0 | AX42: ='F.Dist.'!AB13 -> 0 | AY42: 0 | AZ42: 0 | BA42: =AZ42*'F.EE.'!R12 -> 0 | BB42: =(AZ42*'F.EE.'!AE12) -> 0 | BC42: =(AZ42*'F.EE.'!AF12) -> 0 | BD42: =(AZ42*'F.EE.'!AG12) -> 0 | BE42: 0 | BF42: 0 | BG42: 0 | BH42: 0 | BI42: 0 | BJ42: 0 | BK42: =BJ42*'F.EE.'!U12 -> 0 | BL42: =BJ42*'F.EE.'!AH12 -> 0 | BM42: =BJ42*'F.EE.'!AI12 -> 0 | BN42: =BJ42*'F.EE.'!AJ12 -> 0 | BO42: 0 | BP42: 0 | BQ42: 0 | BR42: ='F.Dist.'!AD13 -> 0 | BS42: ='F.Dist.'!AE13 -> 1 | BT42: ='F.Dist.'!AF13 -> 0 | BU42: ='F.Dist.'!AG13 -> 1 | BV42: 0 | BW42: 0 | BX42: =BW42*'F.EE.'!X12 -> 0 | BY42: 0 | BZ42: 0 | CA42: 0 | CB42: 0 | CC42: =CB42*'F.EE.'!AA12 -> 0 | CD42: 0 | CE42: 0 | CF42: 0 | CG42: 0 | CH42: 0 | CI42: 0 | CJ42: 0 | CK42: 0 | CL42: 0 | CM42: 0 | CN42: 0 | CO42: 0 | CP42: 0
A43: CERDO | B43: Reproductoras criando por 1ª vez | C43: =E.Datos!E45 -> 0 | D43: 37.15 | E43: 0 | F43: ='F.Dist.'!D14 -> 0.7235531629 | G43: 0 | H43: ='F.Dist.'!E14 -> 0 | I43: ='F.Dist.'!F14 -> 0 | J43: ='F.Dist.'!G14 -> 1 | K43: 0 | L43: 0 | M43: =L43*'F.EE.'!D13 -> 0 | N43: 0 | O43: 0 | P43: 0 | Q43: 0 | R43: 0 | S43: =R43*'F.EE.'!G13 -> 0 | T43: 0 | U43: 0 | V43: 0 | W43: ='F.Dist.'!H14 -> 0 | X43: ='F.Dist.'!I14 -> 1 | Y43: 0 | Z43: 0 | AA43: 0 | AB43: 0 | AC43: 0 | AD43: =AA43*'F.EE.'!J13 -> 0 | AE43: =AB43*'F.EE.'!N13 -> 0 | AF43: ='F.Dist.'!J14 -> 0 | AG43: 0 | AH43: 0 | AI43: 0 | AJ43: 0 | AK43: 0 | AL43: ='F.Dist.'!L14 -> 0 | AM43: ='F.Dist.'!M14 -> 0 | AN43: ='F.Dist.'!N14 -> 0 | AO43: ='F.Dist.'!O14 -> 0 | AP43: ='F.Dist.'!R14 -> 0 | AQ43: ='F.Dist.'!S14 -> 1 | AR43: ='F.Dist.'!U14 -> 0 | AS43: ='F.Dist.'!V14 -> 0 | AT43: ='F.Dist.'!W14 -> 0 | AU43: ='F.Dist.'!Y14 -> 0 | AV43: ='F.Dist.'!Z14 -> 0 | AW43: ='F.Dist.'!AA14 -> 0 | AX43: ='F.Dist.'!AB14 -> 0 | AY43: 0 | AZ43: 0 | BA43: =AZ43*'F.EE.'!R13 -> 0 | BB43: =(AZ43*'F.EE.'!AE13) -> 0 | BC43: =(AZ43*'F.EE.'!AF13) -> 0 | BD43: =(AZ43*'F.EE.'!AG13) -> 0 | BE43: 0 | BF43: 0 | BG43: 0 | BH43: 0 | BI43: 0 | BJ43: 0 | BK43: =BJ43*'F.EE.'!U13 -> 0 | BL43: =BJ43*'F.EE.'!AH13 -> 0 | BM43: =BJ43*'F.EE.'!AI13 -> 0 | BN43: =BJ43*'F.EE.'!AJ13 -> 0 | BO43: 0 | BP43: 0 | BQ43: 0 | BR43: ='F.Dist.'!AD14 -> 0 | BS43: ='F.Dist.'!AE14 -> 1 | BT43: ='F.Dist.'!AF14 -> 0 | BU43: ='F.Dist.'!AG14 -> 1 | BV43: 0 | BW43: 0 | BX43: =BW43*'F.EE.'!X13 -> 0 | BY43: 0 | BZ43: 0 | CA43: 0 | CB43: 0 | CC43: =CB43*'F.EE.'!AA13 -> 0 | CD43: 0 | CE43: 0 | CF43: 0 | CG43: 0 | CH43: 0 | CI43: 0 | CJ43: 0 | CK43: 0 | CL43: 0 | CM43: 0 | CN43: 0 | CO43: 0 | CP43: 0
A44: CERDO | B44: Reproductoras criando | C44: =E.Datos!E47 -> 0 | D44: 40.06 | E44: 0 | F44: ='F.Dist.'!D15 -> 0.730654019 | G44: 0 | H44: ='F.Dist.'!E15 -> 0 | I44: ='F.Dist.'!F15 -> 0 | J44: ='F.Dist.'!G15 -> 1 | K44: 0 | L44: 0 | M44: =L44*'F.EE.'!D14 -> 0 | N44: 0 | O44: 0 | P44: 0 | Q44: 0 | R44: 0 | S44: =R44*'F.EE.'!G14 -> 0 | T44: 0 | U44: 0 | V44: 0 | W44: ='F.Dist.'!H15 -> 0 | X44: ='F.Dist.'!I15 -> 1 | Y44: 0 | Z44: 0 | AA44: 0 | AB44: 0 | AC44: 0 | AD44: =AA44*'F.EE.'!J14 -> 0 | AE44: =AB44*'F.EE.'!N14 -> 0 | AF44: ='F.Dist.'!J15 -> 0 | AG44: 0 | AH44: 0 | AI44: 0 | AJ44: 0 | AK44: 0 | AL44: ='F.Dist.'!L15 -> 0 | AM44: ='F.Dist.'!M15 -> 0 | AN44: ='F.Dist.'!N15 -> 0 | AO44: ='F.Dist.'!O15 -> 0 | AP44: ='F.Dist.'!R15 -> 0 | AQ44: ='F.Dist.'!S15 -> 1 | AR44: ='F.Dist.'!U15 -> 0 | AS44: ='F.Dist.'!V15 -> 0 | AT44: ='F.Dist.'!W15 -> 0 | AU44: ='F.Dist.'!Y15 -> 0 | AV44: ='F.Dist.'!Z15 -> 0 | AW44: ='F.Dist.'!AA15 -> 0 | AX44: ='F.Dist.'!AB15 -> 0 | AY44: 0 | AZ44: 0 | BA44: =AZ44*'F.EE.'!R14 -> 0 | BB44: =(AZ44*'F.EE.'!AE14) -> 0 | BC44: =(AZ44*'F.EE.'!AF14) -> 0 | BD44: =(AZ44*'F.EE.'!AG14) -> 0 | BE44: 0 | BF44: 0 | BG44: 0 | BH44: 0 | BI44: 0 | BJ44: 0 | BK44: =BJ44*'F.EE.'!U14 -> 0 | BL44: =BJ44*'F.EE.'!AH14 -> 0 | BM44: =BJ44*'F.EE.'!AI14 -> 0 | BN44: =BJ44*'F.EE.'!AJ14 -> 0 | BO44: 0 | BP44: 0 | BQ44: 0 | BR44: ='F.Dist.'!AD15 -> 0 | BS44: ='F.Dist.'!AE15 -> 1 | BT44: ='F.Dist.'!AF15 -> 0 | BU44: ='F.Dist.'!AG15 -> 1 | BV44: 0 | BW44: 0 | BX44: =BW44*'F.EE.'!X14 -> 0 | BY44: 0 | BZ44: 0 | CA44: 0 | CB44: 0 | CC44: =CB44*'F.EE.'!AA14 -> 0 | CD44: 0 | CE44: 0 | CF44: 0 | CG44: 0 | CH44: 0 | CI44: 0 | CJ44: 0 | CK44: 0 | CL44: 0 | CM44: 0 | CN44: 0 | CO44: 0 | CP44: 0
A45: CERDO | B45: Reproductoras en reposo 1ª vez | C45: =E.Datos!E49 -> 0 | D45: 14.9 | E45: 0 | F45: ='F.Dist.'!D16 -> 0.8234899329 | G45: 0 | H45: ='F.Dist.'!E16 -> 0 | I45: ='F.Dist.'!F16 -> 0 | J45: ='F.Dist.'!G16 -> 1 | K45: 0 | L45: 0 | M45: =L45*'F.EE.'!D15 -> 0 | N45: 0 | O45: 0 | P45: 0 | Q45: 0 | R45: 0 | S45: =R45*'F.EE.'!G15 -> 0 | T45: 0 | U45: 0 | V45: 0 | W45: ='F.Dist.'!H16 -> 0 | X45: ='F.Dist.'!I16 -> 1 | Y45: 0 | Z45: 0 | AA45: 0 | AB45: 0 | AC45: 0 | AD45: =AA45*'F.EE.'!J15 -> 0 | AE45: =AB45*'F.EE.'!N15 -> 0 | AF45: ='F.Dist.'!J16 -> 0 | AG45: 0 | AH45: 0 | AI45: 0 | AJ45: 0 | AK45: 0 | AL45: ='F.Dist.'!L16 -> 0 | AM45: ='F.Dist.'!M16 -> 0 | AN45: ='F.Dist.'!N16 -> 0 | AO45: ='F.Dist.'!O16 -> 0 | AP45: ='F.Dist.'!R16 -> 0 | AQ45: ='F.Dist.'!S16 -> 1 | AR45: ='F.Dist.'!U16 -> 0 | AS45: ='F.Dist.'!V16 -> 0 | AT45: ='F.Dist.'!W16 -> 0 | AU45: ='F.Dist.'!Y16 -> 0 | AV45: ='F.Dist.'!Z16 -> 0 | AW45: ='F.Dist.'!AA16 -> 0 | AX45: ='F.Dist.'!AB16 -> 0 | AY45: 0 | AZ45: 0 | BA45: =AZ45*'F.EE.'!R15 -> 0 | BB45: =(AZ45*'F.EE.'!AE15) -> 0 | BC45: =(AZ45*'F.EE.'!AF15) -> 0 | BD45: =(AZ45*'F.EE.'!AG15) -> 0 | BE45: 0 | BF45: 0 | BG45: 0 | BH45: 0 | BI45: 0 | BJ45: 0 | BK45: =BJ45*'F.EE.'!U15 -> 0 | BL45: =BJ45*'F.EE.'!AH15 -> 0 | BM45: =BJ45*'F.EE.'!AI15 -> 0 | BN45: =BJ45*'F.EE.'!AJ15 -> 0 | BO45: 0 | BP45: 0 | BQ45: 0 | BR45: ='F.Dist.'!AD16 -> 0 | BS45: ='F.Dist.'!AE16 -> 1 | BT45: ='F.Dist.'!AF16 -> 0 | BU45: ='F.Dist.'!AG16 -> 1 | BV45: 0 | BW45: 0 | BX45: =BW45*'F.EE.'!X15 -> 0 | BY45: 0 | BZ45: 0 | CA45: 0 | CB45: 0 | CC45: =CB45*'F.EE.'!AA15 -> 0 | CD45: 0 | CE45: 0 | CF45: 0 | CG45: 0 | CH45: 0 | CI45: 0 | CJ45: 0 | CK45: 0 | CL45: 0 | CM45: 0 | CN45: 0 | CO45: 0 | CP45: 0
A46: CERDO | B46: Reproductoras en reposo | C46: =E.Datos!E51 -> 0 | D46: 14.97 | E46: 0 | F46: ='F.Dist.'!D17 -> 0.7648630595 | G46: 0 | H46: ='F.Dist.'!E17 -> 0 | I46: ='F.Dist.'!F17 -> 0 | J46: ='F.Dist.'!G17 -> 1 | K46: 0 | L46: 0 | M46: =L46*'F.EE.'!D16 -> 0 | N46: 0 | O46: 0 | P46: 0 | Q46: 0 | R46: 0 | S46: =R46*'F.EE.'!G16 -> 0 | T46: 0 | U46: 0 | V46: 0 | W46: ='F.Dist.'!H17 -> 0 | X46: ='F.Dist.'!I17 -> 1 | Y46: 0 | Z46: 0 | AA46: 0 | AB46: 0 | AC46: 0 | AD46: =AA46*'F.EE.'!J16 -> 0 | AE46: =AB46*'F.EE.'!N16 -> 0 | AF46: ='F.Dist.'!J17 -> 0 | AG46: 0 | AH46: 0 | AI46: 0 | AJ46: 0 | AK46: 0 | AL46: ='F.Dist.'!L17 -> 0 | AM46: ='F.Dist.'!M17 -> 0 | AN46: ='F.Dist.'!N17 -> 0 | AO46: ='F.Dist.'!O17 -> 0 | AP46: ='F.Dist.'!R17 -> 0 | AQ46: ='F.Dist.'!S17 -> 1 | AR46: ='F.Dist.'!U17 -> 0 | AS46: ='F.Dist.'!V17 -> 0 | AT46: ='F.Dist.'!W17 -> 0 | AU46: ='F.Dist.'!Y17 -> 0 | AV46: ='F.Dist.'!Z17 -> 0 | AW46: ='F.Dist.'!AA17 -> 0 | AX46: ='F.Dist.'!AB17 -> 0 | AY46: 0 | AZ46: 0 | BA46: =AZ46*'F.EE.'!R16 -> 0 | BB46: =(AZ46*'F.EE.'!AE16) -> 0 | BC46: =(AZ46*'F.EE.'!AF16) -> 0 | BD46: =(AZ46*'F.EE.'!AG16) -> 0 | BE46: 0 | BF46: 0 | BG46: 0 | BH46: 0 | BI46: 0 | BJ46: 0 | BK46: =BJ46*'F.EE.'!U16 -> 0 | BL46: =BJ46*'F.EE.'!AH16 -> 0 | BM46: =BJ46*'F.EE.'!AI16 -> 0 | BN46: =BJ46*'F.EE.'!AJ16 -> 0 | BO46: 0 | BP46: 0 | BQ46: 0 | BR46: ='F.Dist.'!AD17 -> 0 | BS46: ='F.Dist.'!AE17 -> 1 | BT46: ='F.Dist.'!AF17 -> 0 | BU46: ='F.Dist.'!AG17 -> 1 | BV46: 0 | BW46: 0 | BX46: =BW46*'F.EE.'!X16 -> 0 | BY46: 0 | BZ46: 0 | CA46: 0 | CB46: 0 | CC46: =CB46*'F.EE.'!AA16 -> 0 | CD46: 0 | CE46: 0 | CF46: 0 | CG46: 0 | CH46: 0 | CI46: 0 | CJ46: 0 | CK46: 0 | CL46: 0 | CM46: 0 | CN46: 0 | CO46: 0 | CP46: 0
A47: TOTALS | C47: =SUM(C33:C46) -> 0 | E47: =SUM(E33:E46) -> 0 | G47: =SUM(G33:G46) -> 0 | K47: =SUM(K33:K46) -> 0 | L47: =SUM(L33:L46) -> 0 | M47: =SUM(M33:M46) -> 0 | N47: =SUM(N33:N46) -> 0 | O47: =SUM(O33:O46) -> 0 | Q47: =SUM(Q33:Q46) -> 0 | R47: =SUM(R33:R46) -> 0 | S47: =SUM(S33:S46) -> 0 | T47: =SUM(T33:T46) -> 0 | U47: =SUM(U33:U46) -> 0 | Y47: =SUM(Y33:Y46) -> 0 | Z47: =SUM(Z33:Z46) -> 0 | AA47: =SUM(AA33:AA46) -> 0 | AB47: =SUM(AB33:AB46) -> 0 | AD47: =SUM(AD33:AD46) -> 0 | AE47: =SUM(AE33:AE46) -> 0 | AG47: =SUM(AG33:AG46) -> 0 | AH47: =SUM(AH33:AH46) -> 0 | AI47: =SUM(AI33:AI46) -> 0 | AJ47: 0 | AY47: =SUM(AY33:AY46) -> 0 | AZ47: =SUM(AZ33:AZ46) -> 0 | BA47: =SUM(BA33:BA46) -> 0 | BB47: =SUM(BB33:BB46) -> 0 | BC47: 0 | BD47: 0 | BE47: =SUM(BE33:BE46) -> 0 | BF47: =SUM(BF33:BF46) -> 0 | BH47: =SUM(BH33:BH46) -> 0 | BI47: =SUM(BI33:BI46) -> 0 | BJ47: 0 | BK47: =SUM(BK33:BK46) -> 0 | BL47: =SUM(BL33:BL46) -> 0 | BM47: 0 | BN47: 0 | BO47: =SUM(BO33:BO46) -> 0 | BP47: =SUM(BP33:BP46) -> 0 | BV47: =SUM(BV33:BV46) -> 0 | BW47: 0 | BX47: 0 | BY47: 0 | BZ47: 0 | CA47: 0 | CB47: 0 | CC47: 0 | CD47: 0 | CE47: 0 | CF47: 0 | CG47: 0 | CH47: =SUM(CH33:CH46) -> 0 | CI47: =SUM(CI33:CI46) -> 0 | CJ47: =SUM(CJ33:CJ46) -> 0 | CK47: =SUM(CK33:CK46) -> 0 | CL47: =SUM(CL33:CL46) -> 0 | CM47: =SUM(CM33:CM46) -> 0 | CN47: 0 | CO47: =CJ47*17/14 -> 0

Sheet F.EE. (hidden)
A1: SPECIE | B1: CAT_AA | C1: CAT_EMEP | D1: GRAZING | G1: YARD_solid+slurry | J1: BUILD-solid | N1: BUILD_slurry | R1: STORAGE_solid | U1: STORAGE_slurry | X1: APPLIED_ solid | AA1: APPLIED_slurry | AE1: STORAGE_solid | AH1: STORAGE_slurry
D2: FE_GRAZING | E2: FR_GRAZING | F2: Fec_GRAZING | G2: FE_YARD_solid+slurry | H2: FR_YARD_solid+slurry | I2: Fec_YARD_solid+slury | J2: FE_BUILD_solid | K2: FR1_BUILD_solid | L2: FR2_BUILD_solid | M2: FEc_BUILD_solid | N2: FE_BUILD_slurry | O2: FR1_BUILD_solid | P2: FR2_BUILD_solid | Q2: FEc_BUILD_slurry | R2: FE_STORAGE_solid | S2: FR_STORAGE_solid | T2: FEc_STORAGE_solid | U2: FE_STORAGE_slurry | V2: FR_STORAGE_slurry | W2: FEc_STORAGE_slurry | X2: FE_APPLIED_solid | Y2: FR_APPLIED_solid | Z2: FEc_APPLIED_solid | AA2: FE_APPLIED_slurry | AB2: FR_APPLIED_slurry | AC2: FEc_APPLIED_slurry | AE2: kg N2O | AF2: kg N2 | AG2: kg NO | AH2: N2O | AI2: N2 | AJ2: NO
A3: CERDO | B3: Lechones destetados | C3: < 8 kg | D3: 0.25 | E3: 1 | F3: =D3*E3 -> 0.25 | H3: 1 | I3: =G3*H3 -> 0 | J3: 0.25 | K3: 1 | L3: 1 | M3: =J3*K3*L3 -> 0.25 | N3: 0.22 | O3: =VLOOKUP(E.Datos!J25,'F.EE.'!$K$22:$P$29,6,FALSE) -> 1 | P3: =VLOOKUP(E.Datos!L25,'F.EE.'!$K$32:$P$36,6,FALSE) -> 1 | Q3: =N3*O3*P3 -> 0.22 | R3: 0.45 | S3: 1 | T3: =R3*S3 -> 0.45 | U3: 0.14 | V3: =VLOOKUP(E.Datos!R25,'F.EE.'!$S$22:$V$33,4,FALSE) -> 1 | W3: =U3*V3 -> 0.14 | X3: 0.81 | Y3: =VLOOKUP(E.Datos!W25,'F.EE.'!$Y$22:$AB$29,4,FALSE) -> 1 | Z3: =X3*Y3 -> 0.81 | AA3: 0.29 | AB3: =VLOOKUP(E.Datos!W25,'F.EE.'!$Y$22:$AB$29,4,FALSE) -> 1 | AC3: =AA3*AB3 -> 0.29 | AE3: 0.01 | AF3: 0.3 | AG3: 0.01 | AH3: 0 | AI3: 0.003 | AJ3: 0.0001
A4: CERDO | B4: Cerdo 20-49 kg | C4: > 8 kg | D4: 0.25 | E4: 1 | F4: =D4*E4 -> 0.25 | G4: 0.53 | H4: 1 | I4: =G4*H4 -> 0.53 | J4: 0.27 | K4: 1 | L4: 1 | M4: =J4*K4*L4 -> 0.27 | N4: 0.28 | O4: =VLOOKUP(E.Datos!J27,'F.EE.'!$K$22:$P$29,6,FALSE) -> 1 | P4: =VLOOKUP(E.Datos!L27,'F.EE.'!$K$32:$P$36,6,FALSE) -> 1 | Q4: =N4*O4*P4 -> 0.28 | R4: 0.45 | S4: 1 | T4: =R4*S4 -> 0.45 | U4: 0.14 | V4: =VLOOKUP(E.Datos!R27,'F.EE.'!$S$22:$V$33,4,FALSE) -> 1 | W4: =U4*V4 -> 0.14 | X4: 0.81 | Y4: =VLOOKUP(E.Datos!W27,'F.EE.'!$Y$22:$AB$29,4,FALSE) -> 1 | Z4: =X4*Y4 -> 0.81 | AA4: 0.4 | AB4: =VLOOKUP(E.Datos!W27,'F.EE.'!$Y$22:$AB$29,4,FALSE) -> 1 | AC4: =AA4*AB4 -> 0.4 | AE4: 0.01 | AF4: 0.3 | AG4: 0.01 | AH4: 0 | AI4: 0.003 | AJ4: 0.0001
A5: CERDO | B5: Cerdo 50-79 kg | C5: > 8 kg | D5: 0.25 | E5: 1 | F5: 0.25 | G5: 0.53 | H5: 1 | I5: 0.53 | J5: 0.27 | K5: 1 | L5: 1 | M5: 0.27 | N5: 0.28 | O5: =VLOOKUP(E.Datos!J29,'F.EE.'!$K$22:$P$29,6,FALSE) -> 1 | P5: =VLOOKUP(E.Datos!L29,'F.EE.'!$K$32:$P$36,6,FALSE) -> 1 | Q5: 0.28 | R5: 0.45 | S5: 1 | T5: 0.45 | U5: 0.14 | V5: =VLOOKUP(E.Datos!R29,'F.EE.'!$S$22:$V$33,4,FALSE) -> 1 | W5: 0.14 | X5: 0.81 | Y5: =VLOOKUP(E.Datos!W29,'F.EE.'!$Y$22:$AB$29,4,FALSE) -> 1 | Z5: 0.81 | AA5: 0.4 | AB5: =VLOOKUP(E.Datos!W29,'F.EE.'!$Y$22:$AB$29,4,FALSE) -> 1 | AC5: =AA5*AB5 -> 0.4 | AE5: 0.01 | AF5: 0.3 | AG5: 0.01 | AH5: 0 | AI5: 0.003 | AJ5: 0.0001
A6: CERDO | B6: Cerdo 80-109 kg | C6: > 8 kg | D6: 0.25 | E6: 1 | F6: 0.25 | G6: 0.53 | H6: 1 | I6: 0.53 | J6: 0.27 | K6: 1 | L6: 1 | M6: 0.27 | N6: 0.28 | O6: =VLOOKUP(E.Datos!J31,'F.EE.'!$K$22:$P$29,6,FALSE) -> 1 | P6: =VLOOKUP(E.Datos!L31,'F.EE.'!$K$32:$P$36,6,FALSE) -> 1 | Q6: 0.28 | R6: 0.45 | S6: 1 | T6: 0.45 | U6: 0.14 | V6: =VLOOKUP(E.Datos!R31,'F.EE.'!$S$22:$V$33,4,FALSE) -> 1 | W6: 0.14 | X6: 0.81 | Y6: =VLOOKUP(E.Datos!W31,'F.EE.'!$Y$22:$AB$29,4,FALSE) -> 1 | Z6: 0.81 | AA6: 0.4 | AB6: =VLOOKUP(E.Datos!W31,'F.EE.'!$Y$22:$AB$29,4,FALSE) -> 1 | AC6: 0.4 | AE6: 0.01 | AF6: 0.3 | AG6: 0.01 | AH6: 0 | AI6: 0.003 | AJ6: 0.0001
A7: CERDO | B7: Cerdo > 110 kg | C7: > 8 kg | D7: 0.25 | E7: 1 | F7: 0.25 | G7: 0.53 | H7: 1 | I7: 0.53 | J7: 0.27 | K7: 1 | L7: 1 | M7: 0.27 | N7: 0.28 | O7: =VLOOKUP(E.Datos!J33,'F.EE.'!$K$22:$P$29,6,FALSE) -> 1 | P7: =VLOOKUP(E.Datos!L33,'F.EE.'!$K$32:$P$36,6,FALSE) -> 1 | Q7: 0.28 | R7: 0.45 | S7: 1 | T7: =R7*S6 -> 0.45 | U7: 0.14 | V7: =VLOOKUP(E.Datos!R33,'F.EE.'!$S$22:$V$33,4,FALSE) -> 1 | W7: 0.14 | X7: 0.81 | Y7: =VLOOKUP(E.Datos!W33,'F.EE.'!$Y$22:$AB$29,4,FALSE) -> 1 | Z7: 0.81 | AA7: 0.4 | AB7: =VLOOKUP(E.Datos!W33,'F.EE.'!$Y$22:$AB$29,4,FALSE) -> 1 | AC7: 0.4 | AE7: 0.01 | AF7: 0.3 | AG7: 0.01 | AH7: 0 | AI7: 0.003 | AJ7: 0.0001
A8: CERDO | B8: Verracos jóvenes | C8: < 8 kg | D8: 0.25 | E8: 1 | F8: 0.25 | H8: 1 | I8: 0 | J8: 0.25 | K8: 1 | L8: 1 | M8: 0.25 | N8: 0.22 | O8: =VLOOKUP(E.Datos!J35,'F.EE.'!$K$22:$P$29,6,FALSE) -> 1 | P8: =VLOOKUP(E.Datos!L35,'F.EE.'!$K$32:$P$36,6,FALSE) -> 1 | Q8: 0.22 | R8: 0.45 | S8: 1 | T8: =R8*S7 -> 0.45 | U8: 0.14 | V8: =VLOOKUP(E.Datos!R35,'F.EE.'!$S$22:$V$33,4,FALSE) -> 1 | W8: 0.14 | X8: 0.81 | Y8: =VLOOKUP(E.Datos!W35,'F.EE.'!$Y$22:$AB$29,4,FALSE) -> 1 | Z8: 0.81 | AA8: 0.29 | AB8: =VLOOKUP(E.Datos!W35,'F.EE.'!$Y$22:$AB$29,4,FALSE) -> 1 | AC8: 0.29 | AE8: 0.01 | AF8: 0.3 | AG8: 0.01 | AH8: 0 | AI8: 0.003 | AJ8: 0.0001
A9: CERDO | B9: Verracos adultos | C9: > 8 kg | D9: 0.25 | E9: 1 | F9: 0.25 | G9: 0.53 | H9: 1 | I9: 0.53 | J9: 0.27 | K9: 1 | L9: 1 | M9: 0.27 | N9: 0.28 | O9: =VLOOKUP(E.Datos!J37,'F.EE.'!$K$22:$P$29,6,FALSE) -> 1 | P9: =VLOOKUP(E.Datos!L37,'F.EE.'!$K$32:$P$36,6,FALSE) -> 1 | Q9: 0.28 | R9: 0.45 | S9: 1 | T9: =R9*S8 -> 0.45 | U9: 0.14 | V9: =VLOOKUP(E.Datos!R37,'F.EE.'!$S$22:$V$33,4,FALSE) -> 1 | W9: 0.14 | X9: 0.81 | Y9: =VLOOKUP(E.Datos!W37,'F.EE.'!$Y$22:$AB$29,4,FALSE) -> 1 | Z9: 0.81 | AA9: 0.4 | AB9: =VLOOKUP(E.Datos!W37,'F.EE.'!$Y$22:$AB$29,4,FALSE) -> 1 | AC9: 0.4 | AE9: 0.01 | AF9: 0.3 | AG9: 0.01 | AH9: 0 | AI9: 0.003 | AJ9: 0.0001
A10: CERDO | B10: Reproductora no cubierta | C10: < 8 kg | D10: 0.25 | E10: 1 | F10: 0.25 | H10: 1 | I10: 0 | J10: 0.25 | K10: 1 | L10: 1 | M10: 0.25 | N10: 0.22 | O10: =VLOOKUP(E.Datos!J39,'F.EE.'!$K$22:$P$29,6,FALSE) -> 1 | P10: =VLOOKUP(E.Datos!L39,'F.EE.'!$K$32:$P$36,6,FALSE) -> 1 | Q10: 0.22 | R10: 0.45 | S10: 1 | T10: =R10*S9 -> 0.45 | U10: 0.14 | V10: =VLOOKUP(E.Datos!R39,'F.EE.'!$S$22:$V$33,4,FALSE) -> 1 | W10: 0.14 | X10: 0.81 | Y10: =VLOOKUP(E.Datos!W39,'F.EE.'!$Y$22:$AB$29,4,FALSE) -> 1 | Z10: 0.81 | AA10: 0.29 | AB10: =VLOOKUP(E.Datos!W39,'F.EE.'!$Y$22:$AB$29,4,FALSE) -> 1 | AC10: 0.29 | AE10: 0.01 | AF10: 0.3 | AG10: 0.01 | AH10: 0 | AI10: 0.003 | AJ10: 0.0001
A11: CERDO | B11: Reproductora en 1ª gestación | C11: > 8 kg | D11: 0.25 | E11: 1 | F11: 0.25 | G11: 0.53 | H11: 1 | I11: 0.53 | J11: 0.27 | K11: 1 | L11: 1 | M11: 0.27 | N11: 0.28 | O11: =VLOOKUP(E.Datos!J41,'F.EE.'!$K$22:$P$29,6,FALSE) -> 1 | P11: =VLOOKUP(E.Datos!L41,'F.EE.'!$K$32:$P$36,6,FALSE) -> 1 | Q11: 0.28 | R11: 0.45 | S11: 1 | T11: =R11*S10 -> 0.45 | U11: 0.14 | V11: =VLOOKUP(E.Datos!R41,'F.EE.'!$S$22:$V$33,4,FALSE) -> 1 | W11: 0.14 | X11: 0.81 | Y11: =VLOOKUP(E.Datos!W41,'F.EE.'!$Y$22:$AB$29,4,FALSE) -> 1 | Z11: 0.81 | AA11: 0.4 | AB11: =VLOOKUP(E.Datos!W41,'F.EE.'!$Y$22:$AB$29,4,FALSE) -> 1 | AC11: 0.4 | AE11: 0.01 | AF11: 0.3 | AG11: 0.01 | AH11: 0 | AI11: 0.003 | AJ11: 0.0001
A12: CERDO | B12: Reproductora en gestación | C12: > 8 kg | D12: 0.25 | E12: 1 | F12: 0.25 | G12: 0.53 | H12: 1 | I12: 0.53 | J12: 0.27 | K12: 1 | L12: 1 | M12: =J12*K12*L12 -> 0.27 | N12: 0.28 | O12: =VLOOKUP(E.Datos!J43,'F.EE.'!$K$22:$P$29,6,FALSE) -> 1 | P12: =VLOOKUP(E.Datos!L43,'F.EE.'!$K$32:$P$36,6,FALSE) -> 1 | Q12: 0.28 | R12: 0.45 | S12: 1 | T12: 0.45 | U12: 0.14 | V12: =VLOOKUP(E.Datos!R43,'F.EE.'!$S$22:$V$33,4,FALSE) -> 1 | W12: 0.14 | X12: 0.81 | Y12: =VLOOKUP(E.Datos!W43,'F.EE.'!$Y$22:$AB$29,4,FALSE) -> 1 | Z12: 0.81 | AA12: 0.4 | AB12: =VLOOKUP(E.Datos!W43,'F.EE.'!$Y$22:$AB$29,4,FALSE) -> 1 | AC12: 0.4 | AE12: 0.01 | AF12: 0.3 | AG12: 0.01 | AH12: 0 | AI12: 0.003 | AJ12: 0.0001
A13: CERDO | B13: Reproductoras criando por 1ª vez | C13: > 8 kg | D13: 0.25 | E13: 1 | F13: 0.25 | G13: 0.53 | H13: 1 | I13: 0.53 | J13: 0.27 | K13: 1 | L13: 1 | M13: 0.27 | N13: 0.28 | O13: =VLOOKUP(E.Datos!J45,'F.EE.'!$K$22:$P$29,6,FALSE) -> 1 | P13: =VLOOKUP(E.Datos!L45,'F.EE.'!$K$32:$P$36,6,FALSE) -> 1 | Q13: 0.28 | R13: 0.45 | S13: 1 | T13: 0.45 | U13: 0.14 | V13: =VLOOKUP(E.Datos!R45,'F.EE.'!$S$22:$V$33,4,FALSE) -> 1 | W13: 0.14 | X13: 0.81 | Y13: =VLOOKUP(E.Datos!W45,'F.EE.'!$Y$22:$AB$29,4,FALSE) -> 1 | Z13: 0.81 | AA13: 0.4 | AB13: =VLOOKUP(E.Datos!W45,'F.EE.'!$Y$22:$AB$29,4,FALSE) -> 1 | AC13: 0.4 | AE13: 0.01 | AF13: 0.3 | AG13: 0.01 | AH13: 0 | AI13: 0.003 | AJ13: 0.0001
A14: CERDO | B14: Reproductoras criando | C14: > 8 kg | D14: 0.25 | E14: 1 | F14: 0.25 | G14: 0.53 | H14: 1 | I14: 0.53 | J14: 0.27 | K14: 1 | L14: 1 | M14: 0.27 | N14: 0.28 | O14: =VLOOKUP(E.Datos!J47,'F.EE.'!$K$22:$P$29,6,FALSE) -> 1 | P14: =VLOOKUP(E.Datos!L47,'F.EE.'!$K$32:$P$36,6,FALSE) -> 1 | Q14: 0.28 | R14: 0.45 | S14: 1 | T14: 0.45 | U14: 0.14 | V14: =VLOOKUP(E.Datos!R47,'F.EE.'!$S$22:$V$33,4,FALSE) -> 1 | W14: 0.14 | X14: 0.81 | Y14: =VLOOKUP(E.Datos!W47,'F.EE.'!$Y$22:$AB$29,4,FALSE) -> 1 | Z14: 0.81 | AA14: 0.4 | AB14: =VLOOKUP(E.Datos!W47,'F.EE.'!$Y$22:$AB$29,4,FALSE) -> 1 | AC14: 0.4 | AE14: 0.01 | AF14: 0.3 | AG14: 0.01 | AH14: 0 | AI14: 0.003 | AJ14: 0.0001
A15: CERDO | B15: Reproductoras en reposo 1ª vez | C15: > 8 kg | D15: 0.25 | E15: 1 | F15: 0.25 | G15: 0.53 | H15: 1 | I15: 0.53 | J15: 0.27 | K15: 1 | L15: 1 | M15: 0.27 | N15: 0.28 | O15: =VLOOKUP(E.Datos!J49,'F.EE.'!$K$22:$P$29,6,FALSE) -> 1 | P15: =VLOOKUP(E.Datos!L49,'F.EE.'!$K$32:$P$36,6,FALSE) -> 1 | Q15: 0.28 | R15: 0.45 | S15: 1 | T15: 0.45 | U15: 0.14 | V15: =VLOOKUP(E.Datos!R49,'F.EE.'!$S$22:$V$33,4,FALSE) -> 1 | W15: 0.14 | X15: 0.81 | Y15: =VLOOKUP(E.Datos!W49,'F.EE.'!$Y$22:$AB$29,4,FALSE) -> 1 | Z15: 0.81 | AA15: 0.4 | AB15: =VLOOKUP(E.Datos!W49,'F.EE.'!$Y$22:$AB$29,4,FALSE) -> 1 | AC15: 0.4 | AE15: 0.01 | AF15: 0.3 | AG15: 0.01 | AH15: 0 | AI15: 0.003 | AJ15: 0.0001
A16: CERDO | B16: Reproductoras en reposo | C16: > 8 kg | D16: 0.25 | E16: 1 | F16: 0.25 | G16: 0.53 | H16: 1 | I16: 0.53 | J16: 0.27 | K16: 1 | L16: 1 | M16: 0.27 | N16: 0.28 | O16: =VLOOKUP(E.Datos!J51,'F.EE.'!$K$22:$P$29,6,FALSE) -> 1 | P16: =VLOOKUP(E.Datos!L51,'F.EE.'!$K$32:$P$36,6,FALSE) -> 1 | Q16: 0.28 | R16: 0.45 | S16: 1 | T16: 0.45 | U16: 0.14 | V16: =VLOOKUP(E.Datos!R51,'F.EE.'!$S$22:$V$33,4,FALSE) -> 1 | W16: 0.14 | X16: 0.81 | Y16: =VLOOKUP(E.Datos!W51,'F.EE.'!$Y$22:$AB$29,4,FALSE) -> 1 | Z16: 0.81 | AA16: 0.4 | AB16: =VLOOKUP(E.Datos!W51,'F.EE.'!$Y$22:$AB$29,4,FALSE) -> 1 | AC16: 0.4 | AE16: 0.01 | AF16: 0.3 | AG16: 0.01 | AH16: 0 | AI16: 0.003 | AJ16: 0.0001
J19: NH3 REDUCTIONS AND EMISSION FACTORS ACCORDING TO MANAGEMENT TECHNIQUES | P19: BUILD | R19: NH3 REDUCTIONS AND EMISSION FACTORS ACCORDING TO MANAGEMENT TECHNIQUES | V19: STORE | X19: NH3 REDUCTIONS AND EMISSION FACTORS ACCORDING TO MANAGEMENT TECHNIQUES | AB19: APPLIED
J21: FASE 1A. ALOJAMIENTO DE ANIMALES | O21: Coef. Reducción | P21: F.R. | R21: FASE 2. ALMACENAMIENTO DE PURINES | U21: Coef. Reducción | V21: F.R. | X21: FASE 3. APLICACIÓN DE PURINES A CAMPO | AA21: Coef. Reducción | AB21: F.R.
J22: 0 | K22: Emparrillado total | O22: 0 | P22: =1-O22 -> 1 | R22: 0 | S22: Sin almacenamiento | U22: 0 | V22: =1-U22 -> 1 | X22: 0 | Y22: Distribución en abanico | AA22: 0 | AB22: =1-AA22 -> 1
J23: A | K23: Emparrillado parcial y fosa reducida | O23: 0.2 | P23: =1-O23 -> 0.8 | R23: 0 | S23: Almacén sin cubrir y sin costra | U23: 0 | V23: 1 | X23: A | Y23: Inyección superficial | AA23: 0.7 | AB23: =1-AA23 -> 0.3
J24: B | K24: Emparrillado parcial y lavado a chorro | O24: 0.65 | P24: 0.35 | R24: A | S24: Costra natural / Materiales flotantes (paja) | U24: 0.4 | V24: 0.6 | X24: B | Y24: Inyección profunda (5-10 cm) | AA24: 0.8 | AB24: 0.2
J25: C | K25: Emparrillado parcial y acidificación | O25: 0.6 | P25: 0.4 | R25: B | S25: Cubiertas rígidas/flexibles | U25: 0.8 | V25: 0.2 | X25: C | Y25: Inyección profunda (>15 com) | AA25: 0.9 | AB25: 0.1
J26: D | K26: Emparrillado parcial y refrigeración | O26: 0.6 | P26: 0.4 | R26: C | S26: Piezas flotantes | U26: 0.6 | V26: 0.4 | X26: D | Y26: Tubos colgantes | AA26: 0.325 | AB26: 0.675
J27: E | K27: Emparrillado parcial y paredes inclinadas | O27: 0.65 | P27: 0.35 | R27: D | S27: Bolsa de estiércol | U27: 1 | V27: 0 | X27: E | Y27: Zapatas colgantes | AA27: 0.45 | AB27: 0.55
J28: F | K28: Emparrillado parcial y canales de agua y purín | O28: 0.4 | P28: 0.6 | R28: E | S28: Acidificación del purín | U28: 0.5 | V28: 0.5 | X28: F | Y28: Dilución purines y riego baja presión | AA28: 0.3 | AB28: 0.7
J29: G | K29: Emparrillado parcial y cinta en V | O29: 0.7 | P29: 0.3 | R29: F | S29: Lámina de plástico flexible | U29: 0.6 | V29: 0.4 | X29: G | Y29: Acidificación purín (pH 6) y riego | AA29: 0.5 | AB29: 0.5
R30: G | S30: Fosa con paredes inclinadas | U30: 0.45 | V30: 0.55
J31: FASE 1B. EVACUACIÓN DE PURINES | O31: Coef. Reducción | P31: F.R. | R31: H | S31: Refrigeración de la superficie del purín | U31: 0.45 | V31: 0.55
J32: 0 | K32: Retirada poco frecuente: menos de 2 veces por semana | O32: 0 | P32: =1-O32 -> 1 | R32: I | S32: Bolas flotantes | U32: 0.25 | V32: 0.75
J33: A | K33: Retirada al menos 2 veces a la semana, con sistema de vacío | O33: 0.25 | P33: =1-O33 -> 0.75 | R33: J | S33: Sistemas depuración de aire | U33: 0.8 | V33: 0.2
J34: B | K34: Retirada al menos 2 veces a la semana, con lavado a chorro | O34: 0.4 | P34: 0.6
J35: C | K35: Canales de agua y purín | O35: 0.5 | P35: 0.5
J36: D | K36: Colector de estiércol | O36: 0.65 | P36: 0.35

Sheet F.Dist. (hidden)
A1: SPECIE | B1: CAT_AA | C1: CAT_EMEP | D1: x_TAN-T | E1: DISTRIBUTION_Excrete | H1: DISTRIBUTION_BUILD | J1: N_Straw | K1: Separ. S-L | L1: DISTRIBUTION_exBUILD_solid | Q1: DISTRIBUTION_exBUILD_slurry | Y1: DISTRIBUTION_YARD_solid+slurry | AD1: DISTRIBUTION_STORE_solid | AF1: DISTRIBUTION_STORE_slurry
E2: x_GRAZ | F2: x_YARD | G2: x_BUILD | H2: X_BUILD_solid | I2: X_BUILD_slurry | K2: SÍ | L2: x_exBUILD_solid-to-STORE_solid | M2: x_exBUILD_solid-to-STORE_slurry | N2: x_exBUILD_solid-to-FIELD_solid | O2: x_exBUILD_solid-to-OTHERS | P2: CHECK | Q2: x_exBUILD_slurry-to-STORE | R2: x_exBUILD_slurry-to-STORE_solid | S2: x_exBUILD_slurry-to-STORE_slurry | T2: x_exBUILD_slurry-to-FIELD | U2: x_exBUILD_slurry-to-FIELD_solid | V2: x_exBUILD_slurry-to-FIELD_slurry | W2: x_exBUILD_slurry-to-OTHERS | X2: CHECK | Y2: x_YARD-to-STORE_solid | Z2: x_YARD-to-STORE_slurry | AA2: x_YARD-to-FIELD_solid | AB2: x_YARD-to-OTHERS | AC2: CHECK | AD2: x_STORE_solid-to-FIELD_solid | AE2: x_STORE_solid-to-OTHERS | AF2: x_STORE_slurry-to-FIELD_slurry | AG2: x_STORE_slurry-to-OTHERS
D3: kg N-TAN/AA | J3: kg N / AA | K3: NO
A4: CERDO | B4: Lechones destetados | C4: < 8 kg | D4: 0.7362318841 | E4: 0 | F4: 0 | G4: =1-E4-F4 -> 1 | H4: 0 | I4: =1-H4 -> 1 | J4: 0 | K4: =E.Datos!N25 -> NO | L4: 0 | M4: 0 | N4: 0 | O4: 0 | P4: =SUM(L4:O4) -> 0 | Q4: =IF(E.Datos!P25="A almacenamiento",1,0) -> 1 | R4: =IF(K4="Sí",0.1*Q4,0) -> 0 | S4: =IF(K4="SÍ",0.9*Q4,Q4) -> 1 | T4: =IF(E.Datos!P25="Al campo o terreno agrícola",1,0) -> 0 | U4: =IF(K4="Sí",0.1*T4,0) -> 0 | V4: =IF(K4="SÍ",0.9*T4,T4) -> 0 | W4: =IF(E.Datos!P25="A otros usos no agrarios",1,0) -> 0 | X4: =1-SUM(R4:S4)-SUM(U4:V4)-W4 -> 0 | Y4: 0 | Z4: 0 | AA4: 0 | AB4: 0 | AC4: =SUM(X4:AB4) -> 0 | AD4: =IF(E.Datos!T25="Al campo o terreno agrícola",1,0) -> 0 | AE4: =IF(E.Datos!T25="A otros usos no agrarios",1,0) -> 1 | AF4: =IF(E.Datos!U25="Al campo o terreno agrícola",1,0) -> 0 | AG4: =IF(E.Datos!U25="A otros usos no agrarios",1,0) -> 1
A5: CERDO | B5: Cerdo 20-49 kg | C5: > 8 kg | D5: 0.7207718502 | E5: 0 | F5: 0 | G5: =1-E5-F5 -> 1 | H5: 0 | I5: =1-H5 -> 1 | J5: 0 | K5: =E.Datos!N27 -> NO | L5: 0 | M5: 0 | N5: 0 | O5: 0 | P5: =SUM(L5:O5) -> 0 | Q5: =IF(E.Datos!P27="A almacenamiento",1,0) -> 1 | R5: =IF(K5="Sí",0.1*Q5,0) -> 0 | S5: =IF(K5="SÍ",0.9*Q5,Q5) -> 1 | T5: =IF(E.Datos!P27="Al campo o terreno agrícola",1,0) -> 0 | U5: =IF(K5="Sí",0.1*T5,0) -> 0 | V5: =IF(K5="SÍ",0.9*T5,T5) -> 0 | W5: =IF(E.Datos!P27="A otros usos no agrarios",1,0) -> 0 | X5: =1-SUM(R5:S5)-SUM(U5:V5)-W5 -> 0 | Y5: 0 | Z5: 0 | AA5: 0 | AB5: 0 | AC5: =SUM(X5:AB5) -> 0 | AD5: =IF(E.Datos!T27="Al campo o terreno agrícola",1,0) -> 0 | AE5: =IF(E.Datos!T27="A otros usos no agrarios",1,0) -> 1 | AF5: =IF(E.Datos!U27="Al campo o terreno agrícola",1,0) -> 0 | AG5: =IF(E.Datos!U27="A otros usos no agrarios",1,0) -> 1
A6: CERDO | B6: Cerdo 50-79 kg | C6: > 8 kg | D6: 0.7210820896 | E6: 0 | F6: 0 | G6: =1-E6-F6 -> 1 | H6: 0 | I6: 1 | J6: 0 | K6: =E.Datos!N29 -> NO | L6: 0 | M6: 0 | N6: 0 | O6: 0 | P6: 0 | Q6: =IF(E.Datos!P29="A almacenamiento",1,0) -> 1 | R6: 0 | S6: =IF(K6="SÍ",0.9*Q6,Q6) -> 1 | T6: =IF(E.Datos!P29="Al campo o terreno agrícola",1,0) -> 0 | U6: 0 | V6: =IF(K6="SÍ",0.9*T6,T6) -> 0 | W6: =IF(E.Datos!P29="A otros usos no agrarios",1,0) -> 0 | X6: 0 | Y6: 0 | Z6: 0 | AA6: 0 | AB6: 0 | AC6: 0 | AD6: =IF(E.Datos!T29="Al campo o terreno agrícola",1,0) -> 0 | AE6: =IF(E.Datos!T29="A otros usos no agrarios",1,0) -> 1 | AF6: =IF(E.Datos!U29="Al campo o terreno agrícola",1,0) -> 0 | AG6: =IF(E.Datos!U29="A otros usos no agrarios",1,0) -> 1
A7: CERDO | B7: Cerdo 80-109 kg | C7: > 8 kg | D7: 0.7200342466 | E7: 0 | F7: 0 | G7: 1 | H7: 0 | I7: 1 | J7: 0 | K7: =E.Datos!N31 -> NO | L7: 0 | M7: 0 | N7: 0 | O7: 0 | P7: 0 | Q7: =IF(E.Datos!P31="A almacenamiento",1,0) -> 1 | R7: 0 | S7: 1 | T7: =IF(E.Datos!P31="Al campo o terreno agrícola",1,0) -> 0 | U7: 0 | V7: 0 | W7: =IF(E.Datos!P31="A otros usos no agrarios",1,0) -> 0 | X7: 0 | Y7: 0 | Z7: 0 | AA7: 0 | AB7: 0 | AC7: 0 | AD7: =IF(E.Datos!T31="Al campo o terreno agrícola",1,0) -> 0 | AE7: =IF(E.Datos!T31="A otros usos no agrarios",1,0) -> 1 | AF7: =IF(E.Datos!U31="Al campo o terreno agrícola",1,0) -> 0 | AG7: =IF(E.Datos!U31="A otros usos no agrarios",1,0) -> 1
A8: CERDO | B8: Cerdo > 110 kg | C8: > 8 kg | D8: 0.7023217247 | E8: 0 | F8: 0 | G8: 1 | H8: 0 | I8: 1 | J8: 0 | K8: =E.Datos!N33 -> NO | L8: 0 | M8: 0 | N8: 0 | O8: 0 | P8: 0 | Q8: =IF(E.Datos!P33="A almacenamiento",1,0) -> 1 | R8: 0 | S8: 1 | T8: =IF(E.Datos!P33="Al campo o terreno agrícola",1,0) -> 0 | U8: 0 | V8: 0 | W8: =IF(E.Datos!P33="A otros usos no agrarios",1,0) -> 0 | X8: =1-SUM(R8:S8)-SUM(U8:V8)-W8 -> 0 | Y8: 0 | Z8: 0 | AA8: 0 | AB8: 0 | AC8: 0 | AD8: =IF(E.Datos!T33="Al campo o terreno agrícola",1,0) -> 0 | AE8: =IF(E.Datos!T33="A otros usos no agrarios",1,0) -> 1 | AF8: =IF(E.Datos!U33="Al campo o terreno agrícola",1,0) -> 0 | AG8: =IF(E.Datos!U33="A otros usos no agrarios",1,0) -> 1
A9: CERDO | B9: Verracos jóvenes | C9: < 8 kg | D9: 0.7663378545 | E9: 0 | F9: 0 | G9: 1 | H9: 0 | I9: 1 | J9: 0 | K9: =E.Datos!N35 -> NO | L9: 0 | M9: 0 | N9: 0 | O9: 0 | P9: 0 | Q9: =IF(E.Datos!P35="A almacenamiento",1,0) -> 1 | R9: 0 | S9: 1 | T9: =IF(E.Datos!P35="Al campo o terreno agrícola",1,0) -> 0 | U9: 0 | V9: 0 | W9: =IF(E.Datos!P35="A otros usos no agrarios",1,0) -> 0 | X9: 0 | Y9: 0 | Z9: 0 | AA9: 0 | AB9: 0 | AC9: 0 | AD9: =IF(E.Datos!T35="Al campo o terreno agrícola",1,0) -> 0 | AE9: =IF(E.Datos!T35="A otros usos no agrarios",1,0) -> 1 | AF9: =IF(E.Datos!U35="Al campo o terreno agrícola",1,0) -> 0 | AG9: =IF(E.Datos!U35="A otros usos no agrarios",1,0) -> 1
A10: CERDO | B10: Verracos adultos | C10: > 8 kg | D10: 0.7488 | E10: 0 | F10: 0 | G10: 1 | H10: 0 | I10: 1 | J10: 0 | K10: =E.Datos!N37 -> NO | L10: 0 | M10: 0 | N10: 0 | O10: 0 | P10: 0 | Q10: =IF(E.Datos!P37="A almacenamiento",1,0) -> 1 | R10: 0 | S10: 1 | T10: =IF(E.Datos!P37="Al campo o terreno agrícola",1,0) -> 0 | U10: 0 | V10: 0 | W10: =IF(E.Datos!P37="A otros usos no agrarios",1,0) -> 0 | X10: 0 | Y10: 0 | Z10: 0 | AA10: 0 | AB10: 0 | AC10: 0 | AD10: =IF(E.Datos!T37="Al campo o terreno agrícola",1,0) -> 0 | AE10: =IF(E.Datos!T37="A otros usos no agrarios",1,0) -> 1 | AF10: =IF(E.Datos!U37="Al campo o terreno agrícola",1,0) -> 0 | AG10: =IF(E.Datos!U37="A otros usos no agrarios",1,0) -> 1
A11: CERDO | B11: Reproductora no cubierta | C11: < 8 kg | D11: 0.678030303 | E11: 0 | F11: 0 | G11: 1 | H11: 0 | I11: 1 | J11: 0 | K11: =E.Datos!N39 -> NO | L11: 0 | M11: 0 | N11: 0 | O11: 0 | P11: 0 | Q11: =IF(E.Datos!P39="A almacenamiento",1,0) -> 1 | R11: 0 | S11: 1 | T11: =IF(E.Datos!P39="Al campo o terreno agrícola",1,0) -> 0 | U11: 0 | V11: 0 | W11: =IF(E.Datos!P39="A otros usos no agrarios",1,0) -> 0 | X11: 0 | Y11: 0 | Z11: 0 | AA11: 0 | AB11: 0 | AC11: 0 | AD11: =IF(E.Datos!T39="Al campo o terreno agrícola",1,0) -> 0 | AE11: =IF(E.Datos!T39="A otros usos no agrarios",1,0) -> 1 | AF11: =IF(E.Datos!U39="Al campo o terreno agrícola",1,0) -> 0 | AG11: =IF(E.Datos!U39="A otros usos no agrarios",1,0) -> 1
A12: CERDO | B12: Reproductora en 1ª gestación | C12: > 8 kg | D12: 0.7157142857 | E12: 0 | F12: 0 | G12: 1 | H12: 0 | I12: 1 | J12: 0 | K12: =E.Datos!N41 -> NO | L12: 0 | M12: 0 | N12: 0 | O12: 0 | P12: 0 | Q12: =IF(E.Datos!P41="A almacenamiento",1,0) -> 1 | R12: 0 | S12: 1 | T12: =IF(E.Datos!P41="Al campo o terreno agrícola",1,0) -> 0 | U12: 0 | V12: 0 | W12: =IF(E.Datos!P41="A otros usos no agrarios",1,0) -> 0 | X12: 0 | Y12: 0 | Z12: 0 | AA12: 0 | AB12: 0 | AC12: 0 | AD12: =IF(E.Datos!T41="Al campo o terreno agrícola",1,0) -> 0 | AE12: =IF(E.Datos!T41="A otros usos no agrarios",1,0) -> 1 | AF12: =IF(E.Datos!U41="Al campo o terreno agrícola",1,0) -> 0 | AG12: =IF(E.Datos!U41="A otros usos no agrarios",1,0) -> 1
A13: CERDO | B13: Reproductora en gestación | C13: > 8 kg | D13: 0.7343949045 | E13: 0 | F13: 0 | G13: 1 | H13: 0 | I13: 1 | J13: 0 | K13: =E.Datos!N43 -> NO | L13: 0 | M13: 0 | N13: 0 | O13: 0 | P13: 0 | Q13: =IF(E.Datos!P43="A almacenamiento",1,0) -> 1 | R13: 0 | S13: 1 | T13: =IF(E.Datos!P43="Al campo o terreno agrícola",1,0) -> 0 | U13: 0 | V13: 0 | W13: =IF(E.Datos!P43="A otros usos no agrarios",1,0) -> 0 | X13: 0 | Y13: 0 | Z13: 0 | AA13: 0 | AB13: 0 | AC13: 0 | AD13: =IF(E.Datos!T43="Al campo o terreno agrícola",1,0) -> 0 | AE13: =IF(E.Datos!T43="A otros usos no agrarios",1,0) -> 1 | AF13: =IF(E.Datos!U43="Al campo o terreno agrícola",1,0) -> 0 | AG13: =IF(E.Datos!U43="A otros usos no agrarios",1,0) -> 1
A14: CERDO | B14: Reproductoras criando por 1ª vez | C14: > 8 kg | D14: 0.7235531629 | E14: 0 | F14: 0 | G14: 1 | H14: 0 | I14: 1 | J14: 0 | K14: =E.Datos!N45 -> NO | L14: 0 | M14: 0 | N14: 0 | O14: 0 | P14: 0 | Q14: =IF(E.Datos!P45="A almacenamiento",1,0) -> 1 | R14: 0 | S14: 1 | T14: =IF(E.Datos!P45="Al campo o terreno agrícola",1,0) -> 0 | U14: 0 | V14: 0 | W14: =IF(E.Datos!P45="A otros usos no agrarios",1,0) -> 0 | X14: 0 | Y14: 0 | Z14: 0 | AA14: 0 | AB14: 0 | AC14: 0 | AD14: =IF(E.Datos!T45="Al campo o terreno agrícola",1,0) -> 0 | AE14: =IF(E.Datos!T45="A otros usos no agrarios",1,0) -> 1 | AF14: =IF(E.Datos!U45="Al campo o terreno agrícola",1,0) -> 0 | AG14: =IF(E.Datos!U45="A otros usos no agrarios",1,0) -> 1
A15: CERDO | B15: Reproductoras criando | C15: > 8 kg | D15: 0.730654019 | E15: 0 | F15: 0 | G15: 1 | H15: 0 | I15: 1 | J15: 0 | K15: =E.Datos!N47 -> NO | L15: 0 | M15: 0 | N15: 0 | O15: 0 | P15: 0 | Q15: =IF(E.Datos!P47="A almacenamiento",1,0) -> 1 | R15: 0 | S15: 1 | T15: =IF(E.Datos!P47="Al campo o terreno agrícola",1,0) -> 0 | U15: 0 | V15: 0 | W15: =IF(E.Datos!P47="A otros usos no agrarios",1,0) -> 0 | X15: 0 | Y15: 0 | Z15: 0 | AA15: 0 | AB15: 0 | AC15: 0 | AD15: =IF(E.Datos!T47="Al campo o terreno agrícola",1,0) -> 0 | AE15: =IF(E.Datos!T47="A otros usos no agrarios",1,0) -> 1 | AF15: =IF(E.Datos!U47="Al campo o terreno agrícola",1,0) -> 0 | AG15: =IF(E.Datos!U47="A otros usos no agrarios",1,0) -> 1
A16: CERDO | B16: Reproductoras en reposo 1ª vez | C16: > 8 kg | D16: 0.8234899329 | E16: 0 | F16: 0 | G16: 1 | H16: 0 | I16: 1 | J16: 0 | K16: =E.Datos!N49 -> NO | L16: 0 | M16: 0 | N16: 0 | O16: 0 | P16: 0 | Q16: =IF(E.Datos!P49="A almacenamiento",1,0) -> 1 | R16: =IF(K16="Sí",0.1*Q16,0) -> 0 | S16: 1 | T16: =IF(E.Datos!P49="Al campo o terreno agrícola",1,0) -> 0 | U16: 0 | V16: 0 | W16: =IF(E.Datos!P49="A otros usos no agrarios",1,0) -> 0 | X16: 0 | Y16: 0 | Z16: 0 | AA16: 0 | AB16: 0 | AC16: 0 | AD16: =IF(E.Datos!T49="Al campo o terreno agrícola",1,0) -> 0 | AE16: =IF(E.Datos!T49="A otros usos no agrarios",1,0) -> 1 | AF16: =IF(E.Datos!U49="Al campo o terreno agrícola",1,0) -> 0 | AG16: =IF(E.Datos!U49="A otros usos no agrarios",1,0) -> 1
A17: CERDO | B17: Reproductoras en reposo | C17: > 8 kg | D17: 0.7648630595 | E17: 0 | F17: 0 | G17: 1 | H17: 0 | I17: 1 | J17: 0 | K17: =E.Datos!N51 -> NO | L17: 0 | M17: 0 | N17: 0 | O17: 0 | P17: 0 | Q17: =IF(E.Datos!P51="A almacenamiento",1,0) -> 1 | R17: 0 | S17: 1 | T17: =IF(E.Datos!P51="Al campo o terreno agrícola",1,0) -> 0 | U17: 0 | V17: 0 | W17: =IF(E.Datos!P51="A otros usos no agrarios",1,0) -> 0 | X17: 0 | Y17: 0 | Z17: 0 | AA17: 0 | AB17: 0 | AC17: 0 | AD17: =IF(E.Datos!T51="Al campo o terreno agrícola",1,0) -> 0 | AE17: =IF(E.Datos!T51="A otros usos no agrarios",1,0) -> 1 | AF17: =IF(E.Datos!U51="Al campo o terreno agrícola",1,0) -> 0 | AG17: =IF(E.Datos!U51="A otros usos no agrarios",1,0) -> 1
Z19: RESULTS FOR THE WORST SCENARIO | AB19: 4136.293873 | AD19: 3406.385431 | AE19: 0 | AF19: 12.402366 | AG19: 0.1258211043 | AH19: 3418.913618 | AJ19: 4027.436382
